Workbook

Sheet Anleitung
A1: Anleitung zur Benutzung der Rechner (Privatkundenfokus)
A3: 1. Berechnung via Kaufpreis
A5: Bei diesem Rechner ist der Kaufpreis des Wunschobjekts bekannt.
A7: In den Eingabefeldern (Blau) können die verschiedenen Werte erfasst werden.
A8: In den grünen Feldern werden dann die Resultate der Berechnung ausgegeben.
A10: Unter Punkt 2 sieht man die entsprechenden Kreditsummen je nach Eingabe unter Punkt 1
A11: Unter Punkt 3 werden die Zinskosten berechnet welche über den Berechnungszeitraum anfallen, (mit und ohne CHW Anteil) sowie die Differenz zu einer 100% CHF Finanzierung ausgezeigt.
A12: Unter Punkt 4 wird das für die Finanzierung notwendige Einkommen berechnet. Mit und ohne CHW-Anteil bei der Finanzierung (kalkulatorisch)
A15: 2. Berechnung via Einkommen
A17: Bei diesem Rechner ist das Einkommen und die verfügbaren Eigenmittel bekannt und das Ergebniss ist der kalkulatorisch maximal mögliche Kaufpreis.
A18: Die Berechnung erfolgt auf Basis kalkulatorischer Werte und in Schritten von CHF 10 000.-.
A20: In den Eingabefeldern (Blau) können die verschiedenen Werte erfasst werden.
A21: In den grünen Feldern werden dann die Resultate der Berechnung ausgegeben.
A23: Unter Punkt 2 werden die kalkulatorisch maximalen Kaufpreise mit und ohne WIR-Anteil bei der Finanzierung angegeben.
A24: Es wird der tiefste kalkulierte Wert ausgegeben (abhängig von Eigenmitteln und verfügbarem Einkommen).
A25: Die Berechnung funktioniert bis zu einem maximalen Kaufpreis von CHF 4 Mio.

Sheet via Kaufpreis
C1: Rechner Immobilienfinanzierung mit der Bank WIR
A3: Wieviel Zinsen kann ich sparen bei einer Teilfinanzierung mit CHW?
A4: Wie beeinflusst eine Teilfinanzierung in CHW meine Tragbarkeitsrechnung?
B6: Eingabefelder:
B7: Kaufpreis Liegenschaft in CHF: | C7: 1000000 | J7: Hilfszahlen Amo für Tragbarkeit | L7: =IF(C18/C7<0.66,"0",(C18-(C7*66%))/15) -> 9333.333333
B8: Eigenmittel in CHF: | C8: 200000 | E8: =IF(C8>=K10,"OK",L10) -> OK | J8: Kalk Zinssatz: | K8: 4.5 | L8: %
B9: möglicher Anteil in WIR in %: | C9: 0 | D9: % | J9: Kalk Zinssatz WIR: | K9: 1.75 | L9: % (Cap)
J10: EM Warnung | K10: =C7*0.2 -> 200000 | L10: Eigenmittel unter 20% des Kaufpreises
B11: Berechnungszeitraum: | C11: 10 | D11: Jahre
B13: Angenommener Zinssatz für CHF: | C13: 2.5 | D13: %
B14: Angenommener Zinssatz für CHW: | C14: 1.25 | D14: %
B17: Kreditsummen:
B18: Kredithöhe Total in CHF/CHW | C18: =C7-C8 -> 800000
B19: davon
B20: Anteil in CHF | C20: =C18-C21 -> 800000 | D20: CHF
B21: Anteil in CHW | C21: =C18*C9/100 -> 0 | D21: CHW
B24: Zinskosten für den gesamten Berechnungszeitraum:
B25: Zinskosten Total mit CHW-Anteil | C25: =((C20*C13/100)+(C21*C14/100))*C11 -> 200000 | E25: Differenz Total | G25: Differenz p.a.
B27: Zinskosten bei 100% CHF | C27: =(C18*C13/100)*C11 -> 200000 | E27: =C27-C25 -> 0 | G27: =(C27-C25)/C11 -> 0
B30: notwendiges Einkommen (kalkulatorisch)
B31: mit CHW-Anteil | C31: =((C7*0.7/100)+(L7)+(C20*K8/100)+(C21*K9/100))/35*100 -> 149523.8095
B33: bei 100% CHF | C33: =((C7*0.7/100)+L7+(C18*K8/100))/35*100 -> 149523.8095
B37: Berechnungsgrundlagen:
B38: Kalkulatorischer CHF Zinssatz für Tragbarkeit: 4.5%
B39: Kalkulatorischer CHW Zinssatz für Tragbarkeit: 1.75% (Cap)
B40: Unterhaltskosten: 0.7% vom Kaufpreis
B41: Tragbarkeitsrechnung: max. 35% des Einkommens
B42: Amortisation bei mehr als 66% Belehnung und übersteigender Anteil in 15 Jahren zurück geführt.
B44: Disclaimer
B45: Die Nutzung des Hypothekenrechners sowie die daraus folgenden Berechnungsergebnisse sind weder für bestehende noch für potenzielle Kunden der Bank WIR bestimmt. Die Berechnungen dienen ausschliesslich als rein informative und unverbindliche Beispiele basierend auf Annahmen und Richtwerten des Benutzers und sind nicht Bestandteil allfälliger Beratungsleistungen. Sie stellen keine Empfehlung durch die Bank WIR dar. Die Bank WIR übernimmt keine Verantwortung für die Richtigkeit und Vollständigkeit der Angaben und Berechnungsergebnisse im Hypothekenrechner. Sämtliche im Zusammenhang mit den Berechnungsergebnissen getätigten Dispositionen erfolgen auf eigenes Risiko. Jegliche Haftung von der Bank WIR für Schäden, die sich aus der Benützung oder durch den Zugriff auf den Hypothekenrechner oder deren Berechnungsergebnisse ergeben sollten, ist ausgeschlossen.

Sheet via Einkommen
C1: Rechner Immobilienfinanzierung mit der Bank WIR
A3: Wie hoch kann der maximale Kaufpreis sein, bei definiertem Einkommen und Eigenmittel?
A4: Wie beeinflusst eine Teilfinanzierung in CHW den maximalen Kaufpreis?
O5: max Kaufpreis (EK) | P5: Kalk. Kosten max.
B6: Eingabefelder: | O6: =C8/0.2 -> 1000000 | P6: 0.35
B7: verfügbares Einkommen | C7: 150000
B8: verfügbare Eigenmittel in CHF: | C8: 200000 | O8: max Kaufpreis (Einkommen)
B9: möglicher Anteil in WIR in %: | C9: 0 | D9: % | O9: =_xlfn.XLOOKUP("OK",Matrix!I1:I401,Matrix!A1:A401,0,0,1) -> 1000000
O11: max Kaufpreis (Einkommen) mit WIR
B12: Maximaler Kaufpreis | O12: =_xlfn.XLOOKUP("OK",Matrix!O4:O404,Matrix!A4:A404,0,0,1) -> 1000000
B13: bei 100% CHF | C13: =MIN(O9,O6) -> 1000000
B15: mit WIR-Anteil | C15: =MIN(O6,O12) -> 1000000
B19: Berechnungsgrundlagen:
B20: Kalkulatorischer CHF Zinssatz für Tragbarkeit: 4.5%
B21: Kalkulatorischer CHW Zinssatz für Tragbarkeit: 1.75% (Cap)
B22: Unterhaltskosten: 0.7% vom Kaufpreis
B23: Tragbarkeitsrechnung: max. 35% des Einkommens
B24: Amortisation bei mehr als 66% Belehnung und übersteigender Anteil in 15 Jahren zurück geführt.
B25: Eigenmittel begrenzen max. Kaufpreis (mindestens 20% Eigenkaital)
B26: Resultate in CHF 10 000er Schritten (funktioniert bis Kaufpreise von 4 Mio. CHF)
B29: Disclaimer
B30: Die Nutzung des Hypothekenrechners sowie die daraus folgenden Berechnungsergebnisse sind weder für bestehende noch für potenzielle Kunden der Bank WIR bestimmt. Die Berechnungen dienen ausschliesslich als rein informative und unverbindliche Beispiele basierend auf Annahmen und Richtwerten des Benutzers und sind nicht Bestandteil allfälliger Beratungsleistungen. Sie stellen keine Empfehlung durch die Bank WIR dar. Die Bank WIR übernimmt keine Verantwortung für die Richtigkeit und Vollständigkeit der Angaben und Berechnungsergebnisse im Hypothekenrechner. Sämtliche im Zusammenhang mit den Berechnungsergebnissen getätigten Dispositionen erfolgen auf eigenes Risiko. Jegliche Haftung von der Bank WIR für Schäden, die sich aus der Benützung oder durch den Zugriff auf den Hypothekenrechner oder deren Berechnungsergebnisse ergeben sollten, ist ausgeschlossen.

Sheet Matrix (hidden)
A1: Kaufpreis | B1: Kredithöhe | C1: Belehnung | D1: Zinskosten | E1: Ammo | F1: Unterhalt | G1: kalk. Kosten | H1: max. Anteil Einkommen | I1: Check | J1: Kredithöhe CHF | K1: Kredithöhe WIR | L1: Zinskosten CHF II | M1: Zinskosten WIR | N1: kalk. Kosten mit WIR | O1: Check WIR
A2: 4000000 | B2: =A2-'via Einkommen'!$C$8 -> 3800000 | C2: =B2/A2 -> 0.95 | D2: =0.045*B2 -> 171000 | E2: =IF(C2<0.66,"0",(B2-(A2*0.66))/15) -> 77333.33333 | F2: =0.007*A2 -> 28000 | G2: =SUM(D2:F2) -> 276333.3333 | H2: =+'via Einkommen'!$C$7*'via Einkommen'!$P$6 -> 52500 | I2: =IF(H2>G2,"OK","NOK") -> NOK | J2: =A2-'via Einkommen'!$C$8-K2 -> 3800000 | K2: =A2/100*'via Einkommen'!$C$9 -> 0 | L2: =0.045*J2 -> 171000 | M2: =0.0175*K2 -> 0 | N2: =L2+M2+E2+F2 -> 276333.3333 | O2: =IF(H2>N2,"OK","NOK") -> NOK
A3: =A2-10000 -> 3990000 | B3: =A3-'via Einkommen'!$C$8 -> 3790000 | C3: =B3/A3 -> 0.9498746867 | D3: =0.045*B3 -> 170550 | E3: =IF(C3<0.66,"0",(B3-(A3*0.66))/15) -> 77106.66667 | F3: =0.007*A3 -> 27930 | G3: =SUM(D3:F3) -> 275586.6667 | H3: =+'via Einkommen'!$C$7*'via Einkommen'!$P$6 -> 52500 | I3: =IF(H3>G3,"OK","NOK") -> NOK | J3: =A3-'via Einkommen'!$C$8-K3 -> 3790000 | K3: =A3/100*'via Einkommen'!$C$9 -> 0 | L3: =0.045*J3 -> 170550 | M3: =0.0175*K3 -> 0 | N3: =L3+M3+E3+F3 -> 275586.6667 | O3: =IF(H3>N3,"OK","NOK") -> NOK
A4: =A3-10000 -> 3980000 | B4: =A4-'via Einkommen'!$C$8 -> 3780000 | C4: =B4/A4 -> 0.9497487437 | D4: =0.045*B4 -> 170100 | E4: =IF(C4<0.66,"0",(B4-(A4*0.66))/15) -> 76880 | F4: =0.007*A4 -> 27860 | G4: =SUM(D4:F4) -> 274840 | H4: =+'via Einkommen'!$C$7*'via Einkommen'!$P$6 -> 52500 | I4: =IF(H4>G4,"OK","NOK") -> NOK | J4: =A4-'via Einkommen'!$C$8-K4 -> 3780000 | K4: =A4/100*'via Einkommen'!$C$9 -> 0 | L4: 170100 | M4: 0 | N4: 274840 | O4: NOK
A5: 3970000 | B5: =A5-'via Einkommen'!$C$8 -> 3770000 | C5: 0.9496221662 | D5: 169650 | E5: 76653.33333 | F5: 27790 | G5: 274093.3333 | H5: =+'via Einkommen'!$C$7*'via Einkommen'!$P$6 -> 52500 | I5: NOK | J5: =A5-'via Einkommen'!$C$8-K5 -> 3770000 | K5: =A5/100*'via Einkommen'!$C$9 -> 0 | L5: 169650 | M5: 0 | N5: 274093.3333 | O5: NOK
A6: 3960000 | B6: =A6-'via Einkommen'!$C$8 -> 3760000 | C6: 0.9494949495 | D6: 169200 | E6: 76426.66667 | F6: 27720 | G6: 273346.6667 | H6: =+'via Einkommen'!$C$7*'via Einkommen'!$P$6 -> 52500 | I6: NOK | J6: =A6-'via Einkommen'!$C$8-K6 -> 3760000 | K6: =A6/100*'via Einkommen'!$C$9 -> 0 | L6: 169200 | M6: 0 | N6: 273346.6667 | O6: NOK
A7: 3950000 | B7: =A7-'via Einkommen'!$C$8 -> 3750000 | C7: 0.9493670886 | D7: 168750 | E7: 76200 | F7: 27650 | G7: 272600 | H7: =+'via Einkommen'!$C$7*'via Einkommen'!$P$6 -> 52500 | I7: NOK | J7: =A7-'via Einkommen'!$C$8-K7 -> 3750000 | K7: =A7/100*'via Einkommen'!$C$9 -> 0 | L7: 168750 | M7: 0 | N7: 272600 | O7: NOK
A8: 3940000 | B8: =A8-'via Einkommen'!$C$8 -> 3740000 | C8: 0.9492385787 | D8: 168300 | E8: 75973.33333 | F8: 27580 | G8: 271853.3333 | H8: =+'via Einkommen'!$C$7*'via Einkommen'!$P$6 -> 52500 | I8: NOK | J8: =A8-'via Einkommen'!$C$8-K8 -> 3740000 | K8: =A8/100*'via Einkommen'!$C$9 -> 0 | L8: 168300 | M8: 0 | N8: 271853.3333 | O8: NOK
A9: 3930000 | B9: =A9-'via Einkommen'!$C$8 -> 3730000 | C9: 0.9491094148 | D9: 167850 | E9: 75746.66667 | F9: 27510 | G9: 271106.6667 | H9: =+'via Einkommen'!$C$7*'via Einkommen'!$P$6 -> 52500 | I9: NOK | J9: =A9-'via Einkommen'!$C$8-K9 -> 3730000 | K9: =A9/100*'via Einkommen'!$C$9 -> 0 | L9: 167850 | M9: 0 | N9: 271106.6667 | O9: NOK
A10: 3920000 | B10: =A10-'via Einkommen'!$C$8 -> 3720000 | C10: 0.9489795918 | D10: 167400 | E10: 75520 | F10: 27440 | G10: 270360 | H10: =+'via Einkommen'!$C$7*'via Einkommen'!$P$6 -> 52500 | I10: NOK | J10: =A10-'via Einkommen'!$C$8-K10 -> 3720000 | K10: =A10/100*'via Einkommen'!$C$9 -> 0 | L10: 167400 | M10: 0 | N10: 270360 | O10: NOK
A11: 3910000 | B11: =A11-'via Einkommen'!$C$8 -> 3710000 | C11: 0.9488491049 | D11: 166950 | E11: 75293.33333 | F11: 27370 | G11: 269613.3333 | H11: =+'via Einkommen'!$C$7*'via Einkommen'!$P$6 -> 52500 | I11: NOK | J11: =A11-'via Einkommen'!$C$8-K11 -> 3710000 | K11: =A11/100*'via Einkommen'!$C$9 -> 0 | L11: 166950 | M11: 0 | N11: 269613.3333 | O11: NOK
A12: 3900000 | B12: =A12-'via Einkommen'!$C$8 -> 3700000 | C12: 0.9487179487 | D12: 166500 | E12: 75066.66667 | F12: 27300 | G12: 268866.6667 | H12: =+'via Einkommen'!$C$7*'via Einkommen'!$P$6 -> 52500 | I12: NOK | J12: =A12-'via Einkommen'!$C$8-K12 -> 3700000 | K12: =A12/100*'via Einkommen'!$C$9 -> 0 | L12: 166500 | M12: 0 | N12: 268866.6667 | O12: NOK
A13: 3890000 | B13: =A13-'via Einkommen'!$C$8 -> 3690000 | C13: 0.9485861183 | D13: 166050 | E13: 74840 | F13: 27230 | G13: 268120 | H13: =+'via Einkommen'!$C$7*'via Einkommen'!$P$6 -> 52500 | I13: NOK | J13: =A13-'via Einkommen'!$C$8-K13 -> 3690000 | K13: =A13/100*'via Einkommen'!$C$9 -> 0 | L13: 166050 | M13: 0 | N13: 268120 | O13: NOK
A14: 3880000 | B14: =A14-'via Einkommen'!$C$8 -> 3680000 | C14: 0.9484536082 | D14: 165600 | E14: 74613.33333 | F14: 27160 | G14: 267373.3333 | H14: =+'via Einkommen'!$C$7*'via Einkommen'!$P$6 -> 52500 | I14: NOK | J14: =A14-'via Einkommen'!$C$8-K14 -> 3680000 | K14: =A14/100*'via Einkommen'!$C$9 -> 0 | L14: 165600 | M14: 0 | N14: 267373.3333 | O14: NOK
A15: 3870000 | B15: =A15-'via Einkommen'!$C$8 -> 3670000 | C15: 0.9483204134 | D15: 165150 | E15: 74386.66667 | F15: 27090 | G15: 266626.6667 | H15: =+'via Einkommen'!$C$7*'via Einkommen'!$P$6 -> 52500 | I15: NOK | J15: =A15-'via Einkommen'!$C$8-K15 -> 3670000 | K15: =A15/100*'via Einkommen'!$C$9 -> 0 | L15: 165150 | M15: 0 | N15: 266626.6667 | O15: NOK
A16: 3860000 | B16: =A16-'via Einkommen'!$C$8 -> 3660000 | C16: 0.9481865285 | D16: 164700 | E16: 74160 | F16: 27020 | G16: 265880 | H16: =+'via Einkommen'!$C$7*'via Einkommen'!$P$6 -> 52500 | I16: NOK | J16: =A16-'via Einkommen'!$C$8-K16 -> 3660000 | K16: =A16/100*'via Einkommen'!$C$9 -> 0 | L16: 164700 | M16: 0 | N16: 265880 | O16: NOK
A17: 3850000 | B17: =A17-'via Einkommen'!$C$8 -> 3650000 | C17: 0.9480519481 | D17: 164250 | E17: 73933.33333 | F17: 26950 | G17: 265133.3333 | H17: =+'via Einkommen'!$C$7*'via Einkommen'!$P$6 -> 52500 | I17: NOK | J17: =A17-'via Einkommen'!$C$8-K17 -> 3650000 | K17: =A17/100*'via Einkommen'!$C$9 -> 0 | L17: 164250 | M17: 0 | N17: 265133.3333 | O17: NOK
A18: 3840000 | B18: =A18-'via Einkommen'!$C$8 -> 3640000 | C18: 0.9479166667 | D18: 163800 | E18: 73706.66667 | F18: 26880 | G18: 264386.6667 | H18: =+'via Einkommen'!$C$7*'via Einkommen'!$P$6 -> 52500 | I18: NOK | J18: =A18-'via Einkommen'!$C$8-K18 -> 3640000 | K18: =A18/100*'via Einkommen'!$C$9 -> 0 | L18: 163800 | M18: 0 | N18: 264386.6667 | O18: NOK
A19: 3830000 | B19: =A19-'via Einkommen'!$C$8 -> 3630000 | C19: 0.9477806789 | D19: 163350 | E19: 73480 | F19: 26810 | G19: 263640 | H19: =+'via Einkommen'!$C$7*'via Einkommen'!$P$6 -> 52500 | I19: NOK | J19: =A19-'via Einkommen'!$C$8-K19 -> 3630000 | K19: =A19/100*'via Einkommen'!$C$9 -> 0 | L19: 163350 | M19: 0 | N19: 263640 | O19: NOK
A20: 3820000 | B20: =A20-'via Einkommen'!$C$8 -> 3620000 | C20: 0.9476439791 | D20: 162900 | E20: 73253.33333 | F20: 26740 | G20: 262893.3333 | H20: =+'via Einkommen'!$C$7*'via Einkommen'!$P$6 -> 52500 | I20: NOK | J20: =A20-'via Einkommen'!$C$8-K20 -> 3620000 | K20: =A20/100*'via Einkommen'!$C$9 -> 0 | L20: 162900 | M20: 0 | N20: 262893.3333 | O20: NOK
A21: 3810000 | B21: =A21-'via Einkommen'!$C$8 -> 3610000 | C21: 0.9475065617 | D21: 162450 | E21: 73026.66667 | F21: 26670 | G21: 262146.6667 | H21: =+'via Einkommen'!$C$7*'via Einkommen'!$P$6 -> 52500 | I21: NOK | J21: =A21-'via Einkommen'!$C$8-K21 -> 3610000 | K21: =A21/100*'via Einkommen'!$C$9 -> 0 | L21: 162450 | M21: 0 | N21: 262146.6667 | O21: NOK
A22: 3800000 | B22: =A22-'via Einkommen'!$C$8 -> 3600000 | C22: 0.9473684211 | D22: 162000 | E22: 72800 | F22: 26600 | G22: 261400 | H22: =+'via Einkommen'!$C$7*'via Einkommen'!$P$6 -> 52500 | I22: NOK | J22: =A22-'via Einkommen'!$C$8-K22 -> 3600000 | K22: =A22/100*'via Einkommen'!$C$9 -> 0 | L22: 162000 | M22: 0 | N22: 261400 | O22: NOK
A23: 3790000 | B23: =A23-'via Einkommen'!$C$8 -> 3590000 | C23: 0.9472295515 | D23: 161550 | E23: 72573.33333 | F23: 26530 | G23: 260653.3333 | H23: =+'via Einkommen'!$C$7*'via Einkommen'!$P$6 -> 52500 | I23: NOK | J23: =A23-'via Einkommen'!$C$8-K23 -> 3590000 | K23: =A23/100*'via Einkommen'!$C$9 -> 0 | L23: 161550 | M23: 0 | N23: 260653.3333 | O23: NOK
A24: 3780000 | B24: =A24-'via Einkommen'!$C$8 -> 3580000 | C24: 0.9470899471 | D24: 161100 | E24: 72346.66667 | F24: 26460 | G24: 259906.6667 | H24: =+'via Einkommen'!$C$7*'via Einkommen'!$P$6 -> 52500 | I24: NOK | J24: =A24-'via Einkommen'!$C$8-K24 -> 3580000 | K24: =A24/100*'via Einkommen'!$C$9 -> 0 | L24: 161100 | M24: 0 | N24: 259906.6667 | O24: NOK
A25: 3770000 | B25: =A25-'via Einkommen'!$C$8 -> 3570000 | C25: 0.9469496021 | D25: 160650 | E25: 72120 | F25: 26390 | G25: 259160 | H25: =+'via Einkommen'!$C$7*'via Einkommen'!$P$6 -> 52500 | I25: NOK | J25: =A25-'via Einkommen'!$C$8-K25 -> 3570000 | K25: =A25/100*'via Einkommen'!$C$9 -> 0 | L25: 160650 | M25: 0 | N25: 259160 | O25: NOK
A26: 3760000 | B26: =A26-'via Einkommen'!$C$8 -> 3560000 | C26: 0.9468085106 | D26: 160200 | E26: 71893.33333 | F26: 26320 | G26: 258413.3333 | H26: =+'via Einkommen'!$C$7*'via Einkommen'!$P$6 -> 52500 | I26: NOK | J26: =A26-'via Einkommen'!$C$8-K26 -> 3560000 | K26: =A26/100*'via Einkommen'!$C$9 -> 0 | L26: 160200 | M26: 0 | N26: 258413.3333 | O26: NOK
A27: 3750000 | B27: =A27-'via Einkommen'!$C$8 -> 3550000 | C27: 0.9466666667 | D27: 159750 | E27: 71666.66667 | F27: 26250 | G27: 257666.6667 | H27: =+'via Einkommen'!$C$7*'via Einkommen'!$P$6 -> 52500 | I27: NOK | J27: =A27-'via Einkommen'!$C$8-K27 -> 3550000 | K27: =A27/100*'via Einkommen'!$C$9 -> 0 | L27: 159750 | M27: 0 | N27: 257666.6667 | O27: NOK
A28: 3740000 | B28: =A28-'via Einkommen'!$C$8 -> 3540000 | C28: 0.9465240642 | D28: 159300 | E28: 71440 | F28: 26180 | G28: 256920 | H28: =+'via Einkommen'!$C$7*'via Einkommen'!$P$6 -> 52500 | I28: NOK | J28: =A28-'via Einkommen'!$C$8-K28 -> 3540000 | K28: =A28/100*'via Einkommen'!$C$9 -> 0 | L28: 159300 | M28: 0 | N28: 256920 | O28: NOK
A29: 3730000 | B29: =A29-'via Einkommen'!$C$8 -> 3530000 | C29: 0.9463806971 | D29: 158850 | E29: 71213.33333 | F29: 26110 | G29: 256173.3333 | H29: =+'via Einkommen'!$C$7*'via Einkommen'!$P$6 -> 52500 | I29: NOK | J29: =A29-'via Einkommen'!$C$8-K29 -> 3530000 | K29: =A29/100*'via Einkommen'!$C$9 -> 0 | L29: 158850 | M29: 0 | N29: 256173.3333 | O29: NOK
A30: 3720000 | B30: =A30-'via Einkommen'!$C$8 -> 3520000 | C30: 0.9462365591 | D30: 158400 | E30: 70986.66667 | F30: 26040 | G30: 255426.6667 | H30: =+'via Einkommen'!$C$7*'via Einkommen'!$P$6 -> 52500 | I30: NOK | J30: =A30-'via Einkommen'!$C$8-K30 -> 3520000 | K30: =A30/100*'via Einkommen'!$C$9 -> 0 | L30: 158400 | M30: 0 | N30: 255426.6667 | O30: NOK
A31: 3710000 | B31: =A31-'via Einkommen'!$C$8 -> 3510000 | C31: 0.9460916442 | D31: 157950 | E31: 70760 | F31: 25970 | G31: 254680 | H31: =+'via Einkommen'!$C$7*'via Einkommen'!$P$6 -> 52500 | I31: NOK | J31: =A31-'via Einkommen'!$C$8-K31 -> 3510000 | K31: =A31/100*'via Einkommen'!$C$9 -> 0 | L31: 157950 | M31: 0 | N31: 254680 | O31: NOK
A32: 3700000 | B32: =A32-'via Einkommen'!$C$8 -> 3500000 | C32: 0.9459459459 | D32: 157500 | E32: 70533.33333 | F32: 25900 | G32: 253933.3333 | H32: =+'via Einkommen'!$C$7*'via Einkommen'!$P$6 -> 52500 | I32: NOK | J32: =A32-'via Einkommen'!$C$8-K32 -> 3500000 | K32: =A32/100*'via Einkommen'!$C$9 -> 0 | L32: 157500 | M32: 0 | N32: 253933.3333 | O32: NOK
A33: 3690000 | B33: =A33-'via Einkommen'!$C$8 -> 3490000 | C33: 0.945799458 | D33: 157050 | E33: 70306.66667 | F33: 25830 | G33: 253186.6667 | H33: =+'via Einkommen'!$C$7*'via Einkommen'!$P$6 -> 52500 | I33: NOK | J33: =A33-'via Einkommen'!$C$8-K33 -> 3490000 | K33: =A33/100*'via Einkommen'!$C$9 -> 0 | L33: 157050 | M33: 0 | N33: 253186.6667 | O33: NOK
A34: 3680000 | B34: =A34-'via Einkommen'!$C$8 -> 3480000 | C34: 0.9456521739 | D34: 156600 | E34: 70080 | F34: 25760 | G34: 252440 | H34: =+'via Einkommen'!$C$7*'via Einkommen'!$P$6 -> 52500 | I34: NOK | J34: =A34-'via Einkommen'!$C$8-K34 -> 3480000 | K34: =A34/100*'via Einkommen'!$C$9 -> 0 | L34: 156600 | M34: 0 | N34: 252440 | O34: NOK
A35: 3670000 | B35: =A35-'via Einkommen'!$C$8 -> 3470000 | C35: 0.9455040872 | D35: 156150 | E35: 69853.33333 | F35: 25690 | G35: 251693.3333 | H35: =+'via Einkommen'!$C$7*'via Einkommen'!$P$6 -> 52500 | I35: NOK | J35: =A35-'via Einkommen'!$C$8-K35 -> 3470000 | K35: =A35/100*'via Einkommen'!$C$9 -> 0 | L35: 156150 | M35: 0 | N35: 251693.3333 | O35: NOK
A36: 3660000 | B36: =A36-'via Einkommen'!$C$8 -> 3460000 | C36: 0.9453551913 | D36: 155700 | E36: 69626.66667 | F36: 25620 | G36: 250946.6667 | H36: =+'via Einkommen'!$C$7*'via Einkommen'!$P$6 -> 52500 | I36: NOK | J36: =A36-'via Einkommen'!$C$8-K36 -> 3460000 | K36: =A36/100*'via Einkommen'!$C$9 -> 0 | L36: 155700 | M36: 0 | N36: 250946.6667 | O36: NOK
A37: 3650000 | B37: =A37-'via Einkommen'!$C$8 -> 3450000 | C37: 0.9452054795 | D37: 155250 | E37: 69400 | F37: 25550 | G37: 250200 | H37: =+'via Einkommen'!$C$7*'via Einkommen'!$P$6 -> 52500 | I37: NOK | J37: =A37-'via Einkommen'!$C$8-K37 -> 3450000 | K37: =A37/100*'via Einkommen'!$C$9 -> 0 | L37: 155250 | M37: 0 | N37: 250200 | O37: NOK
A38: 3640000 | B38: =A38-'via Einkommen'!$C$8 -> 3440000 | C38: 0.9450549451 | D38: 154800 | E38: 69173.33333 | F38: 25480 | G38: 249453.3333 | H38: =+'via Einkommen'!$C$7*'via Einkommen'!$P$6 -> 52500 | I38: NOK | J38: =A38-'via Einkommen'!$C$8-K38 -> 3440000 | K38: =A38/100*'via Einkommen'!$C$9 -> 0 | L38: 154800 | M38: 0 | N38: 249453.3333 | O38: NOK
A39: 3630000 | B39: =A39-'via Einkommen'!$C$8 -> 3430000 | C39: 0.9449035813 | D39: 154350 | E39: 68946.66667 | F39: 25410 | G39: 248706.6667 | H39: =+'via Einkommen'!$C$7*'via Einkommen'!$P$6 -> 52500 | I39: NOK | J39: =A39-'via Einkommen'!$C$8-K39 -> 3430000 | K39: =A39/100*'via Einkommen'!$C$9 -> 0 | L39: 154350 | M39: 0 | N39: 248706.6667 | O39: NOK
A40: 3620000 | B40: =A40-'via Einkommen'!$C$8 -> 3420000 | C40: 0.9447513812 | D40: 153900 | E40: 68720 | F40: 25340 | G40: 247960 | H40: =+'via Einkommen'!$C$7*'via Einkommen'!$P$6 -> 52500 | I40: NOK | J40: =A40-'via Einkommen'!$C$8-K40 -> 3420000 | K40: =A40/100*'via Einkommen'!$C$9 -> 0 | L40: 153900 | M40: 0 | N40: 247960 | O40: NOK
A41: 3610000 | B41: =A41-'via Einkommen'!$C$8 -> 3410000 | C41: 0.944598338 | D41: 153450 | E41: 68493.33333 | F41: 25270 | G41: 247213.3333 | H41: =+'via Einkommen'!$C$7*'via Einkommen'!$P$6 -> 52500 | I41: NOK | J41: =A41-'via Einkommen'!$C$8-K41 -> 3410000 | K41: =A41/100*'via Einkommen'!$C$9 -> 0 | L41: 153450 | M41: 0 | N41: 247213.3333 | O41: NOK
A42: 3600000 | B42: =A42-'via Einkommen'!$C$8 -> 3400000 | C42: 0.9444444444 | D42: 153000 | E42: 68266.66667 | F42: 25200 | G42: 246466.6667 | H42: =+'via Einkommen'!$C$7*'via Einkommen'!$P$6 -> 52500 | I42: NOK | J42: =A42-'via Einkommen'!$C$8-K42 -> 3400000 | K42: =A42/100*'via Einkommen'!$C$9 -> 0 | L42: 153000 | M42: 0 | N42: 246466.6667 | O42: NOK
A43: 3590000 | B43: =A43-'via Einkommen'!$C$8 -> 3390000 | C43: 0.9442896936 | D43: 152550 | E43: 68040 | F43: 25130 | G43: 245720 | H43: =+'via Einkommen'!$C$7*'via Einkommen'!$P$6 -> 52500 | I43: NOK | J43: =A43-'via Einkommen'!$C$8-K43 -> 3390000 | K43: =A43/100*'via Einkommen'!$C$9 -> 0 | L43: 152550 | M43: 0 | N43: 245720 | O43: NOK
A44: 3580000 | B44: =A44-'via Einkommen'!$C$8 -> 3380000 | C44: 0.9441340782 | D44: 152100 | E44: 67813.33333 | F44: 25060 | G44: 244973.3333 | H44: =+'via Einkommen'!$C$7*'via Einkommen'!$P$6 -> 52500 | I44: NOK | J44: =A44-'via Einkommen'!$C$8-K44 -> 3380000 | K44: =A44/100*'via Einkommen'!$C$9 -> 0 | L44: 152100 | M44: 0 | N44: 244973.3333 | O44: NOK
A45: 3570000 | B45: =A45-'via Einkommen'!$C$8 -> 3370000 | C45: 0.943977591 | D45: 151650 | E45: 67586.66667 | F45: 24990 | G45: 244226.6667 | H45: =+'via Einkommen'!$C$7*'via Einkommen'!$P$6 -> 52500 | I45: NOK | J45: =A45-'via Einkommen'!$C$8-K45 -> 3370000 | K45: =A45/100*'via Einkommen'!$C$9 -> 0 | L45: 151650 | M45: 0 | N45: 244226.6667 | O45: NOK
A46: 3560000 | B46: =A46-'via Einkommen'!$C$8 -> 3360000 | C46: 0.9438202247 | D46: 151200 | E46: 67360 | F46: 24920 | G46: 243480 | H46: =+'via Einkommen'!$C$7*'via Einkommen'!$P$6 -> 52500 | I46: NOK | J46: =A46-'via Einkommen'!$C$8-K46 -> 3360000 | K46: =A46/100*'via Einkommen'!$C$9 -> 0 | L46: 151200 | M46: 0 | N46: 243480 | O46: NOK
A47: 3550000 | B47: =A47-'via Einkommen'!$C$8 -> 3350000 | C47: 0.9436619718 | D47: 150750 | E47: 67133.33333 | F47: 24850 | G47: 242733.3333 | H47: =+'via Einkommen'!$C$7*'via Einkommen'!$P$6 -> 52500 | I47: NOK | J47: =A47-'via Einkommen'!$C$8-K47 -> 3350000 | K47: =A47/100*'via Einkommen'!$C$9 -> 0 | L47: 150750 | M47: 0 | N47: 242733.3333 | O47: NOK
A48: 3540000 | B48: =A48-'via Einkommen'!$C$8 -> 3340000 | C48: 0.9435028249 | D48: 150300 | E48: 66906.66667 | F48: 24780 | G48: 241986.6667 | H48: =+'via Einkommen'!$C$7*'via Einkommen'!$P$6 -> 52500 | I48: NOK | J48: =A48-'via Einkommen'!$C$8-K48 -> 3340000 | K48: =A48/100*'via Einkommen'!$C$9 -> 0 | L48: 150300 | M48: 0 | N48: 241986.6667 | O48: NOK
A49: 3530000 | B49: =A49-'via Einkommen'!$C$8 -> 3330000 | C49: 0.9433427762 | D49: 149850 | E49: 66680 | F49: 24710 | G49: 241240 | H49: =+'via Einkommen'!$C$7*'via Einkommen'!$P$6 -> 52500 | I49: NOK | J49: =A49-'via Einkommen'!$C$8-K49 -> 3330000 | K49: =A49/100*'via Einkommen'!$C$9 -> 0 | L49: 149850 | M49: 0 | N49: 241240 | O49: NOK
A50: 3520000 | B50: =A50-'via Einkommen'!$C$8 -> 3320000 | C50: 0.9431818182 | D50: 149400 | E50: 66453.33333 | F50: 24640 | G50: 240493.3333 | H50: =+'via Einkommen'!$C$7*'via Einkommen'!$P$6 -> 52500 | I50: NOK | J50: =A50-'via Einkommen'!$C$8-K50 -> 3320000 | K50: =A50/100*'via Einkommen'!$C$9 -> 0 | L50: 149400 | M50: 0 | N50: 240493.3333 | O50: NOK
A51: 3510000 | B51: =A51-'via Einkommen'!$C$8 -> 3310000 | C51: 0.943019943 | D51: 148950 | E51: 66226.66667 | F51: 24570 | G51: 239746.6667 | H51: =+'via Einkommen'!$C$7*'via Einkommen'!$P$6 -> 52500 | I51: NOK | J51: =A51-'via Einkommen'!$C$8-K51 -> 3310000 | K51: =A51/100*'via Einkommen'!$C$9 -> 0 | L51: 148950 | M51: 0 | N51: 239746.6667 | O51: NOK
A52: 3500000 | B52: =A52-'via Einkommen'!$C$8 -> 3300000 | C52: 0.9428571429 | D52: 148500 | E52: 66000 | F52: 24500 | G52: 239000 | H52: =+'via Einkommen'!$C$7*'via Einkommen'!$P$6 -> 52500 | I52: NOK | J52: =A52-'via Einkommen'!$C$8-K52 -> 3300000 | K52: =A52/100*'via Einkommen'!$C$9 -> 0 | L52: 148500 | M52: 0 | N52: 239000 | O52: NOK
A53: 3490000 | B53: =A53-'via Einkommen'!$C$8 -> 3290000 | C53: 0.9426934097 | D53: 148050 | E53: 65773.33333 | F53: 24430 | G53: 238253.3333 | H53: =+'via Einkommen'!$C$7*'via Einkommen'!$P$6 -> 52500 | I53: NOK | J53: =A53-'via Einkommen'!$C$8-K53 -> 3290000 | K53: =A53/100*'via Einkommen'!$C$9 -> 0 | L53: 148050 | M53: 0 | N53: 238253.3333 | O53: NOK
A54: 3480000 | B54: =A54-'via Einkommen'!$C$8 -> 3280000 | C54: 0.9425287356 | D54: 147600 | E54: 65546.66667 | F54: 24360 | G54: 237506.6667 | H54: =+'via Einkommen'!$C$7*'via Einkommen'!$P$6 -> 52500 | I54: NOK | J54: =A54-'via Einkommen'!$C$8-K54 -> 3280000 | K54: =A54/100*'via Einkommen'!$C$9 -> 0 | L54: 147600 | M54: 0 | N54: 237506.6667 | O54: NOK
A55: 3470000 | B55: =A55-'via Einkommen'!$C$8 -> 3270000 | C55: 0.9423631124 | D55: 147150 | E55: 65320 | F55: 24290 | G55: 236760 | H55: =+'via Einkommen'!$C$7*'via Einkommen'!$P$6 -> 52500 | I55: NOK | J55: =A55-'via Einkommen'!$C$8-K55 -> 3270000 | K55: =A55/100*'via Einkommen'!$C$9 -> 0 | L55: 147150 | M55: 0 | N55: 236760 | O55: NOK
A56: 3460000 | B56: =A56-'via Einkommen'!$C$8 -> 3260000 | C56: 0.9421965318 | D56: 146700 | E56: 65093.33333 | F56: 24220 | G56: 236013.3333 | H56: =+'via Einkommen'!$C$7*'via Einkommen'!$P$6 -> 52500 | I56: NOK | J56: =A56-'via Einkommen'!$C$8-K56 -> 3260000 | K56: =A56/100*'via Einkommen'!$C$9 -> 0 | L56: 146700 | M56: 0 | N56: 236013.3333 | O56: NOK
A57: 3450000 | B57: =A57-'via Einkommen'!$C$8 -> 3250000 | C57: 0.9420289855 | D57: 146250 | E57: 64866.66667 | F57: 24150 | G57: 235266.6667 | H57: =+'via Einkommen'!$C$7*'via Einkommen'!$P$6 -> 52500 | I57: NOK | J57: =A57-'via Einkommen'!$C$8-K57 -> 3250000 | K57: =A57/100*'via Einkommen'!$C$9 -> 0 | L57: 146250 | M57: 0 | N57: 235266.6667 | O57: NOK
A58: 3440000 | B58: =A58-'via Einkommen'!$C$8 -> 3240000 | C58: 0.9418604651 | D58: 145800 | E58: 64640 | F58: 24080 | G58: 234520 | H58: =+'via Einkommen'!$C$7*'via Einkommen'!$P$6 -> 52500 | I58: NOK | J58: =A58-'via Einkommen'!$C$8-K58 -> 3240000 | K58: =A58/100*'via Einkommen'!$C$9 -> 0 | L58: 145800 | M58: 0 | N58: 234520 | O58: NOK
A59: 3430000 | B59: =A59-'via Einkommen'!$C$8 -> 3230000 | C59: 0.9416909621 | D59: 145350 | E59: 64413.33333 | F59: 24010 | G59: 233773.3333 | H59: =+'via Einkommen'!$C$7*'via Einkommen'!$P$6 -> 52500 | I59: NOK | J59: =A59-'via Einkommen'!$C$8-K59 -> 3230000 | K59: =A59/100*'via Einkommen'!$C$9 -> 0 | L59: 145350 | M59: 0 | N59: 233773.3333 | O59: NOK
A60: 3420000 | B60: =A60-'via Einkommen'!$C$8 -> 3220000 | C60: 0.9415204678 | D60: 144900 | E60: 64186.66667 | F60: 23940 | G60: 233026.6667 | H60: =+'via Einkommen'!$C$7*'via Einkommen'!$P$6 -> 52500 | I60: NOK | J60: =A60-'via Einkommen'!$C$8-K60 -> 3220000 | K60: =A60/100*'via Einkommen'!$C$9 -> 0 | L60: 144900 | M60: 0 | N60: 233026.6667 | O60: NOK
A61: 3410000 | B61: =A61-'via Einkommen'!$C$8 -> 3210000 | C61: 0.9413489736 | D61: 144450 | E61: 63960 | F61: 23870 | G61: 232280 | H61: =+'via Einkommen'!$C$7*'via Einkommen'!$P$6 -> 52500 | I61: NOK | J61: =A61-'via Einkommen'!$C$8-K61 -> 3210000 | K61: =A61/100*'via Einkommen'!$C$9 -> 0 | L61: 144450 | M61: 0 | N61: 232280 | O61: NOK
A62: 3400000 | B62: =A62-'via Einkommen'!$C$8 -> 3200000 | C62: 0.9411764706 | D62: 144000 | E62: 63733.33333 | F62: 23800 | G62: 231533.3333 | H62: =+'via Einkommen'!$C$7*'via Einkommen'!$P$6 -> 52500 | I62: NOK | J62: =A62-'via Einkommen'!$C$8-K62 -> 3200000 | K62: =A62/100*'via Einkommen'!$C$9 -> 0 | L62: 144000 | M62: 0 | N62: 231533.3333 | O62: NOK
A63: 3390000 | B63: =A63-'via Einkommen'!$C$8 -> 3190000 | C63: 0.9410029499 | D63: 143550 | E63: 63506.66667 | F63: 23730 | G63: 230786.6667 | H63: =+'via Einkommen'!$C$7*'via Einkommen'!$P$6 -> 52500 | I63: NOK | J63: =A63-'via Einkommen'!$C$8-K63 -> 3190000 | K63: =A63/100*'via Einkommen'!$C$9 -> 0 | L63: 143550 | M63: 0 | N63: 230786.6667 | O63: NOK
A64: 3380000 | B64: =A64-'via Einkommen'!$C$8 -> 3180000 | C64: 0.9408284024 | D64: 143100 | E64: 63280 | F64: 23660 | G64: 230040 | H64: =+'via Einkommen'!$C$7*'via Einkommen'!$P$6 -> 52500 | I64: NOK | J64: =A64-'via Einkommen'!$C$8-K64 -> 3180000 | K64: =A64/100*'via Einkommen'!$C$9 -> 0 | L64: 143100 | M64: 0 | N64: 230040 | O64: NOK
A65: 3370000 | B65: =A65-'via Einkommen'!$C$8 -> 3170000 | C65: 0.940652819 | D65: 142650 | E65: 63053.33333 | F65: 23590 | G65: 229293.3333 | H65: =+'via Einkommen'!$C$7*'via Einkommen'!$P$6 -> 52500 | I65: NOK | J65: =A65-'via Einkommen'!$C$8-K65 -> 3170000 | K65: =A65/100*'via Einkommen'!$C$9 -> 0 | L65: 142650 | M65: 0 | N65: 229293.3333 | O65: NOK
A66: 3360000 | B66: =A66-'via Einkommen'!$C$8 -> 3160000 | C66: 0.9404761905 | D66: 142200 | E66: 62826.66667 | F66: 23520 | G66: 228546.6667 | H66: =+'via Einkommen'!$C$7*'via Einkommen'!$P$6 -> 52500 | I66: NOK | J66: =A66-'via Einkommen'!$C$8-K66 -> 3160000 | K66: =A66/100*'via Einkommen'!$C$9 -> 0 | L66: 142200 | M66: 0 | N66: 228546.6667 | O66: NOK
A67: 3350000 | B67: =A67-'via Einkommen'!$C$8 -> 3150000 | C67: 0.9402985075 | D67: 141750 | E67: 62600 | F67: 23450 | G67: 227800 | H67: =+'via Einkommen'!$C$7*'via Einkommen'!$P$6 -> 52500 | I67: NOK | J67: =A67-'via Einkommen'!$C$8-K67 -> 3150000 | K67: =A67/100*'via Einkommen'!$C$9 -> 0 | L67: =0.045*J67 -> 141750 | M67: =0.0175*K67 -> 0 | N67: =L67+M67+E67+F67 -> 227800 | O67: =IF(H67>N67,"OK","NOK") -> NOK
A68: =A67-10000 -> 3340000 | B68: =A68-'via Einkommen'!$C$8 -> 3140000 | C68: =B68/A68 -> 0.9401197605 | D68: =0.045*B68 -> 141300 | E68: =IF(C68<0.66,"0",(B68-(A68*0.66))/15) -> 62373.33333 | F68: =0.007*A68 -> 23380 | G68: =SUM(D68:F68) -> 227053.3333 | H68: =+'via Einkommen'!$C$7*'via Einkommen'!$P$6 -> 52500 | I68: =IF(H68>G68,"OK","NOK") -> NOK | J68: =A68-'via Einkommen'!$C$8-K68 -> 3140000 | K68: =A68/100*'via Einkommen'!$C$9 -> 0 | L68: 141300 | M68: 0 | N68: 227053.3333 | O68: NOK
A69: 3330000 | B69: =A69-'via Einkommen'!$C$8 -> 3130000 | C69: 0.9399399399 | D69: 140850 | E69: 62146.66667 | F69: 23310 | G69: 226306.6667 | H69: =+'via Einkommen'!$C$7*'via Einkommen'!$P$6 -> 52500 | I69: NOK | J69: =A69-'via Einkommen'!$C$8-K69 -> 3130000 | K69: =A69/100*'via Einkommen'!$C$9 -> 0 | L69: 140850 | M69: 0 | N69: 226306.6667 | O69: NOK
A70: 3320000 | B70: =A70-'via Einkommen'!$C$8 -> 3120000 | C70: 0.9397590361 | D70: 140400 | E70: 61920 | F70: 23240 | G70: 225560 | H70: =+'via Einkommen'!$C$7*'via Einkommen'!$P$6 -> 52500 | I70: NOK | J70: =A70-'via Einkommen'!$C$8-K70 -> 3120000 | K70: =A70/100*'via Einkommen'!$C$9 -> 0 | L70: 140400 | M70: 0 | N70: 225560 | O70: NOK
A71: 3310000 | B71: =A71-'via Einkommen'!$C$8 -> 3110000 | C71: 0.9395770393 | D71: 139950 | E71: 61693.33333 | F71: 23170 | G71: 224813.3333 | H71: =+'via Einkommen'!$C$7*'via Einkommen'!$P$6 -> 52500 | I71: NOK | J71: =A71-'via Einkommen'!$C$8-K71 -> 3110000 | K71: =A71/100*'via Einkommen'!$C$9 -> 0 | L71: 139950 | M71: 0 | N71: 224813.3333 | O71: NOK
A72: 3300000 | B72: =A72-'via Einkommen'!$C$8 -> 3100000 | C72: 0.9393939394 | D72: 139500 | E72: 61466.66667 | F72: 23100 | G72: 224066.6667 | H72: =+'via Einkommen'!$C$7*'via Einkommen'!$P$6 -> 52500 | I72: NOK | J72: =A72-'via Einkommen'!$C$8-K72 -> 3100000 | K72: =A72/100*'via Einkommen'!$C$9 -> 0 | L72: 139500 | M72: 0 | N72: 224066.6667 | O72: NOK
A73: 3290000 | B73: =A73-'via Einkommen'!$C$8 -> 3090000 | C73: 0.9392097264 | D73: 139050 | E73: 61240 | F73: 23030 | G73: 223320 | H73: =+'via Einkommen'!$C$7*'via Einkommen'!$P$6 -> 52500 | I73: NOK | J73: =A73-'via Einkommen'!$C$8-K73 -> 3090000 | K73: =A73/100*'via Einkommen'!$C$9 -> 0 | L73: 139050 | M73: 0 | N73: 223320 | O73: NOK
A74: 3280000 | B74: =A74-'via Einkommen'!$C$8 -> 3080000 | C74: 0.9390243902 | D74: 138600 | E74: 61013.33333 | F74: 22960 | G74: 222573.3333 | H74: =+'via Einkommen'!$C$7*'via Einkommen'!$P$6 -> 52500 | I74: NOK | J74: =A74-'via Einkommen'!$C$8-K74 -> 3080000 | K74: =A74/100*'via Einkommen'!$C$9 -> 0 | L74: 138600 | M74: 0 | N74: 222573.3333 | O74: NOK
A75: 3270000 | B75: =A75-'via Einkommen'!$C$8 -> 3070000 | C75: 0.9388379205 | D75: 138150 | E75: 60786.66667 | F75: 22890 | G75: 221826.6667 | H75: =+'via Einkommen'!$C$7*'via Einkommen'!$P$6 -> 52500 | I75: NOK | J75: =A75-'via Einkommen'!$C$8-K75 -> 3070000 | K75: =A75/100*'via Einkommen'!$C$9 -> 0 | L75: 138150 | M75: 0 | N75: 221826.6667 | O75: NOK
A76: 3260000 | B76: =A76-'via Einkommen'!$C$8 -> 3060000 | C76: 0.9386503067 | D76: 137700 | E76: 60560 | F76: 22820 | G76: 221080 | H76: =+'via Einkommen'!$C$7*'via Einkommen'!$P$6 -> 52500 | I76: NOK | J76: =A76-'via Einkommen'!$C$8-K76 -> 3060000 | K76: =A76/100*'via Einkommen'!$C$9 -> 0 | L76: 137700 | M76: 0 | N76: 221080 | O76: NOK
A77: 3250000 | B77: =A77-'via Einkommen'!$C$8 -> 3050000 | C77: 0.9384615385 | D77: 137250 | E77: 60333.33333 | F77: 22750 | G77: 220333.3333 | H77: =+'via Einkommen'!$C$7*'via Einkommen'!$P$6 -> 52500 | I77: NOK | J77: =A77-'via Einkommen'!$C$8-K77 -> 3050000 | K77: =A77/100*'via Einkommen'!$C$9 -> 0 | L77: 137250 | M77: 0 | N77: 220333.3333 | O77: NOK
A78: 3240000 | B78: =A78-'via Einkommen'!$C$8 -> 3040000 | C78: 0.9382716049 | D78: 136800 | E78: 60106.66667 | F78: 22680 | G78: 219586.6667 | H78: =+'via Einkommen'!$C$7*'via Einkommen'!$P$6 -> 52500 | I78: NOK | J78: =A78-'via Einkommen'!$C$8-K78 -> 3040000 | K78: =A78/100*'via Einkommen'!$C$9 -> 0 | L78: 136800 | M78: 0 | N78: 219586.6667 | O78: NOK
A79: 3230000 | B79: =A79-'via Einkommen'!$C$8 -> 3030000 | C79: 0.9380804954 | D79: 136350 | E79: 59880 | F79: 22610 | G79: 218840 | H79: =+'via Einkommen'!$C$7*'via Einkommen'!$P$6 -> 52500 | I79: NOK | J79: =A79-'via Einkommen'!$C$8-K79 -> 3030000 | K79: =A79/100*'via Einkommen'!$C$9 -> 0 | L79: 136350 | M79: 0 | N79: 218840 | O79: NOK
A80: 3220000 | B80: =A80-'via Einkommen'!$C$8 -> 3020000 | C80: 0.9378881988 | D80: 135900 | E80: 59653.33333 | F80: 22540 | G80: 218093.3333 | H80: =+'via Einkommen'!$C$7*'via Einkommen'!$P$6 -> 52500 | I80: NOK | J80: =A80-'via Einkommen'!$C$8-K80 -> 3020000 | K80: =A80/100*'via Einkommen'!$C$9 -> 0 | L80: 135900 | M80: 0 | N80: 218093.3333 | O80: NOK
A81: 3210000 | B81: =A81-'via Einkommen'!$C$8 -> 3010000 | C81: 0.937694704 | D81: 135450 | E81: 59426.66667 | F81: 22470 | G81: 217346.6667 | H81: =+'via Einkommen'!$C$7*'via Einkommen'!$P$6 -> 52500 | I81: NOK | J81: =A81-'via Einkommen'!$C$8-K81 -> 3010000 | K81: =A81/100*'via Einkommen'!$C$9 -> 0 | L81: 135450 | M81: 0 | N81: 217346.6667 | O81: NOK
A82: 3200000 | B82: =A82-'via Einkommen'!$C$8 -> 3000000 | C82: 0.9375 | D82: 135000 | E82: 59200 | F82: 22400 | G82: 216600 | H82: =+'via Einkommen'!$C$7*'via Einkommen'!$P$6 -> 52500 | I82: NOK | J82: =A82-'via Einkommen'!$C$8-K82 -> 3000000 | K82: =A82/100*'via Einkommen'!$C$9 -> 0 | L82: 135000 | M82: 0 | N82: 216600 | O82: NOK
A83: 3190000 | B83: =A83-'via Einkommen'!$C$8 -> 2990000 | C83: 0.9373040752 | D83: 134550 | E83: 58973.33333 | F83: 22330 | G83: 215853.3333 | H83: =+'via Einkommen'!$C$7*'via Einkommen'!$P$6 -> 52500 | I83: NOK | J83: =A83-'via Einkommen'!$C$8-K83 -> 2990000 | K83: =A83/100*'via Einkommen'!$C$9 -> 0 | L83: 134550 | M83: 0 | N83: 215853.3333 | O83: NOK
A84: 3180000 | B84: =A84-'via Einkommen'!$C$8 -> 2980000 | C84: 0.9371069182 | D84: 134100 | E84: 58746.66667 | F84: 22260 | G84: 215106.6667 | H84: =+'via Einkommen'!$C$7*'via Einkommen'!$P$6 -> 52500 | I84: NOK | J84: =A84-'via Einkommen'!$C$8-K84 -> 2980000 | K84: =A84/100*'via Einkommen'!$C$9 -> 0 | L84: 134100 | M84: 0 | N84: 215106.6667 | O84: NOK
A85: 3170000 | B85: =A85-'via Einkommen'!$C$8 -> 2970000 | C85: 0.9369085174 | D85: 133650 | E85: 58520 | F85: 22190 | G85: 214360 | H85: =+'via Einkommen'!$C$7*'via Einkommen'!$P$6 -> 52500 | I85: NOK | J85: =A85-'via Einkommen'!$C$8-K85 -> 2970000 | K85: =A85/100*'via Einkommen'!$C$9 -> 0 | L85: 133650 | M85: 0 | N85: 214360 | O85: NOK
A86: 3160000 | B86: =A86-'via Einkommen'!$C$8 -> 2960000 | C86: 0.9367088608 | D86: 133200 | E86: 58293.33333 | F86: 22120 | G86: 213613.3333 | H86: =+'via Einkommen'!$C$7*'via Einkommen'!$P$6 -> 52500 | I86: NOK | J86: =A86-'via Einkommen'!$C$8-K86 -> 2960000 | K86: =A86/100*'via Einkommen'!$C$9 -> 0 | L86: 133200 | M86: 0 | N86: 213613.3333 | O86: NOK
A87: 3150000 | B87: =A87-'via Einkommen'!$C$8 -> 2950000 | C87: 0.9365079365 | D87: 132750 | E87: 58066.66667 | F87: 22050 | G87: 212866.6667 | H87: =+'via Einkommen'!$C$7*'via Einkommen'!$P$6 -> 52500 | I87: NOK | J87: =A87-'via Einkommen'!$C$8-K87 -> 2950000 | K87: =A87/100*'via Einkommen'!$C$9 -> 0 | L87: 132750 | M87: 0 | N87: 212866.6667 | O87: NOK
A88: 3140000 | B88: =A88-'via Einkommen'!$C$8 -> 2940000 | C88: 0.9363057325 | D88: 132300 | E88: 57840 | F88: 21980 | G88: 212120 | H88: =+'via Einkommen'!$C$7*'via Einkommen'!$P$6 -> 52500 | I88: NOK | J88: =A88-'via Einkommen'!$C$8-K88 -> 2940000 | K88: =A88/100*'via Einkommen'!$C$9 -> 0 | L88: 132300 | M88: 0 | N88: 212120 | O88: NOK
A89: 3130000 | B89: =A89-'via Einkommen'!$C$8 -> 2930000 | C89: 0.9361022364 | D89: 131850 | E89: 57613.33333 | F89: 21910 | G89: 211373.3333 | H89: =+'via Einkommen'!$C$7*'via Einkommen'!$P$6 -> 52500 | I89: NOK | J89: =A89-'via Einkommen'!$C$8-K89 -> 2930000 | K89: =A89/100*'via Einkommen'!$C$9 -> 0 | L89: 131850 | M89: 0 | N89: 211373.3333 | O89: NOK
A90: 3120000 | B90: =A90-'via Einkommen'!$C$8 -> 2920000 | C90: 0.9358974359 | D90: 131400 | E90: 57386.66667 | F90: 21840 | G90: 210626.6667 | H90: =+'via Einkommen'!$C$7*'via Einkommen'!$P$6 -> 52500 | I90: NOK | J90: =A90-'via Einkommen'!$C$8-K90 -> 2920000 | K90: =A90/100*'via Einkommen'!$C$9 -> 0 | L90: 131400 | M90: 0 | N90: 210626.6667 | O90: NOK
A91: 3110000 | B91: =A91-'via Einkommen'!$C$8 -> 2910000 | C91: 0.9356913183 | D91: 130950 | E91: 57160 | F91: 21770 | G91: 209880 | H91: =+'via Einkommen'!$C$7*'via Einkommen'!$P$6 -> 52500 | I91: NOK | J91: =A91-'via Einkommen'!$C$8-K91 -> 2910000 | K91: =A91/100*'via Einkommen'!$C$9 -> 0 | L91: 130950 | M91: 0 | N91: 209880 | O91: NOK
A92: 3100000 | B92: =A92-'via Einkommen'!$C$8 -> 2900000 | C92: 0.935483871 | D92: 130500 | E92: 56933.33333 | F92: 21700 | G92: 209133.3333 | H92: =+'via Einkommen'!$C$7*'via Einkommen'!$P$6 -> 52500 | I92: NOK | J92: =A92-'via Einkommen'!$C$8-K92 -> 2900000 | K92: =A92/100*'via Einkommen'!$C$9 -> 0 | L92: 130500 | M92: 0 | N92: 209133.3333 | O92: NOK
A93: 3090000 | B93: =A93-'via Einkommen'!$C$8 -> 2890000 | C93: 0.9352750809 | D93: 130050 | E93: 56706.66667 | F93: 21630 | G93: 208386.6667 | H93: =+'via Einkommen'!$C$7*'via Einkommen'!$P$6 -> 52500 | I93: NOK | J93: =A93-'via Einkommen'!$C$8-K93 -> 2890000 | K93: =A93/100*'via Einkommen'!$C$9 -> 0 | L93: 130050 | M93: 0 | N93: 208386.6667 | O93: NOK
A94: 3080000 | B94: =A94-'via Einkommen'!$C$8 -> 2880000 | C94: 0.9350649351 | D94: 129600 | E94: 56480 | F94: 21560 | G94: 207640 | H94: =+'via Einkommen'!$C$7*'via Einkommen'!$P$6 -> 52500 | I94: NOK | J94: =A94-'via Einkommen'!$C$8-K94 -> 2880000 | K94: =A94/100*'via Einkommen'!$C$9 -> 0 | L94: 129600 | M94: 0 | N94: 207640 | O94: NOK
A95: 3070000 | B95: =A95-'via Einkommen'!$C$8 -> 2870000 | C95: 0.9348534202 | D95: 129150 | E95: 56253.33333 | F95: 21490 | G95: 206893.3333 | H95: =+'via Einkommen'!$C$7*'via Einkommen'!$P$6 -> 52500 | I95: NOK | J95: =A95-'via Einkommen'!$C$8-K95 -> 2870000 | K95: =A95/100*'via Einkommen'!$C$9 -> 0 | L95: 129150 | M95: 0 | N95: 206893.3333 | O95: NOK
A96: 3060000 | B96: =A96-'via Einkommen'!$C$8 -> 2860000 | C96: 0.9346405229 | D96: 128700 | E96: 56026.66667 | F96: 21420 | G96: 206146.6667 | H96: =+'via Einkommen'!$C$7*'via Einkommen'!$P$6 -> 52500 | I96: NOK | J96: =A96-'via Einkommen'!$C$8-K96 -> 2860000 | K96: =A96/100*'via Einkommen'!$C$9 -> 0 | L96: 128700 | M96: 0 | N96: 206146.6667 | O96: NOK
A97: 3050000 | B97: =A97-'via Einkommen'!$C$8 -> 2850000 | C97: 0.9344262295 | D97: 128250 | E97: 55800 | F97: 21350 | G97: 205400 | H97: =+'via Einkommen'!$C$7*'via Einkommen'!$P$6 -> 52500 | I97: NOK | J97: =A97-'via Einkommen'!$C$8-K97 -> 2850000 | K97: =A97/100*'via Einkommen'!$C$9 -> 0 | L97: 128250 | M97: 0 | N97: 205400 | O97: NOK
A98: 3040000 | B98: =A98-'via Einkommen'!$C$8 -> 2840000 | C98: 0.9342105263 | D98: 127800 | E98: 55573.33333 | F98: 21280 | G98: 204653.3333 | H98: =+'via Einkommen'!$C$7*'via Einkommen'!$P$6 -> 52500 | I98: NOK | J98: =A98-'via Einkommen'!$C$8-K98 -> 2840000 | K98: =A98/100*'via Einkommen'!$C$9 -> 0 | L98: 127800 | M98: 0 | N98: 204653.3333 | O98: NOK
A99: 3030000 | B99: =A99-'via Einkommen'!$C$8 -> 2830000 | C99: 0.9339933993 | D99: 127350 | E99: 55346.66667 | F99: 21210 | G99: 203906.6667 | H99: =+'via Einkommen'!$C$7*'via Einkommen'!$P$6 -> 52500 | I99: NOK | J99: =A99-'via Einkommen'!$C$8-K99 -> 2830000 | K99: =A99/100*'via Einkommen'!$C$9 -> 0 | L99: 127350 | M99: 0 | N99: 203906.6667 | O99: NOK
A100: 3020000 | B100: =A100-'via Einkommen'!$C$8 -> 2820000 | C100: 0.9337748344 | D100: 126900 | E100: 55120 | F100: 21140 | G100: 203160 | H100: =+'via Einkommen'!$C$7*'via Einkommen'!$P$6 -> 52500 | I100: NOK | J100: =A100-'via Einkommen'!$C$8-K100 -> 2820000 | K100: =A100/100*'via Einkommen'!$C$9 -> 0 | L100: 126900 | M100: 0 | N100: 203160 | O100: NOK
A101: 3010000 | B101: =A101-'via Einkommen'!$C$8 -> 2810000 | C101: 0.9335548173 | D101: 126450 | E101: 54893.33333 | F101: 21070 | G101: 202413.3333 | H101: =+'via Einkommen'!$C$7*'via Einkommen'!$P$6 -> 52500 | I101: NOK | J101: =A101-'via Einkommen'!$C$8-K101 -> 2810000 | K101: =A101/100*'via Einkommen'!$C$9 -> 0 | L101: 126450 | M101: 0 | N101: 202413.3333 | O101: NOK
A102: 3000000 | B102: =A102-'via Einkommen'!$C$8 -> 2800000 | C102: 0.9333333333 | D102: 126000 | E102: 54666.66667 | F102: 21000 | G102: 201666.6667 | H102: =+'via Einkommen'!$C$7*'via Einkommen'!$P$6 -> 52500 | I102: NOK | J102: =A102-'via Einkommen'!$C$8-K102 -> 2800000 | K102: =A102/100*'via Einkommen'!$C$9 -> 0 | L102: 126000 | M102: 0 | N102: 201666.6667 | O102: NOK
A103: 2990000 | B103: =A103-'via Einkommen'!$C$8 -> 2790000 | C103: 0.9331103679 | D103: 125550 | E103: 54440 | F103: 20930 | G103: 200920 | H103: =+'via Einkommen'!$C$7*'via Einkommen'!$P$6 -> 52500 | I103: NOK | J103: =A103-'via Einkommen'!$C$8-K103 -> 2790000 | K103: =A103/100*'via Einkommen'!$C$9 -> 0 | L103: 125550 | M103: 0 | N103: 200920 | O103: NOK
A104: 2980000 | B104: =A104-'via Einkommen'!$C$8 -> 2780000 | C104: 0.932885906 | D104: 125100 | E104: 54213.33333 | F104: 20860 | G104: 200173.3333 | H104: =+'via Einkommen'!$C$7*'via Einkommen'!$P$6 -> 52500 | I104: NOK | J104: =A104-'via Einkommen'!$C$8-K104 -> 2780000 | K104: =A104/100*'via Einkommen'!$C$9 -> 0 | L104: 125100 | M104: 0 | N104: 200173.3333 | O104: NOK
A105: 2970000 | B105: =A105-'via Einkommen'!$C$8 -> 2770000 | C105: 0.9326599327 | D105: 124650 | E105: 53986.66667 | F105: 20790 | G105: 199426.6667 | H105: =+'via Einkommen'!$C$7*'via Einkommen'!$P$6 -> 52500 | I105: NOK | J105: =A105-'via Einkommen'!$C$8-K105 -> 2770000 | K105: =A105/100*'via Einkommen'!$C$9 -> 0 | L105: 124650 | M105: 0 | N105: 199426.6667 | O105: NOK
A106: 2960000 | B106: =A106-'via Einkommen'!$C$8 -> 2760000 | C106: 0.9324324324 | D106: 124200 | E106: 53760 | F106: 20720 | G106: 198680 | H106: =+'via Einkommen'!$C$7*'via Einkommen'!$P$6 -> 52500 | I106: NOK | J106: =A106-'via Einkommen'!$C$8-K106 -> 2760000 | K106: =A106/100*'via Einkommen'!$C$9 -> 0 | L106: 124200 | M106: 0 | N106: 198680 | O106: NOK
A107: 2950000 | B107: =A107-'via Einkommen'!$C$8 -> 2750000 | C107: 0.9322033898 | D107: 123750 | E107: 53533.33333 | F107: 20650 | G107: 197933.3333 | H107: =+'via Einkommen'!$C$7*'via Einkommen'!$P$6 -> 52500 | I107: NOK | J107: =A107-'via Einkommen'!$C$8-K107 -> 2750000 | K107: =A107/100*'via Einkommen'!$C$9 -> 0 | L107: 123750 | M107: 0 | N107: 197933.3333 | O107: NOK
A108: 2940000 | B108: =A108-'via Einkommen'!$C$8 -> 2740000 | C108: 0.9319727891 | D108: 123300 | E108: 53306.66667 | F108: 20580 | G108: 197186.6667 | H108: =+'via Einkommen'!$C$7*'via Einkommen'!$P$6 -> 52500 | I108: NOK | J108: =A108-'via Einkommen'!$C$8-K108 -> 2740000 | K108: =A108/100*'via Einkommen'!$C$9 -> 0 | L108: 123300 | M108: 0 | N108: 197186.6667 | O108: NOK
A109: 2930000 | B109: =A109-'via Einkommen'!$C$8 -> 2730000 | C109: 0.9317406143 | D109: 122850 | E109: 53080 | F109: 20510 | G109: 196440 | H109: =+'via Einkommen'!$C$7*'via Einkommen'!$P$6 -> 52500 | I109: NOK | J109: =A109-'via Einkommen'!$C$8-K109 -> 2730000 | K109: =A109/100*'via Einkommen'!$C$9 -> 0 | L109: 122850 | M109: 0 | N109: 196440 | O109: NOK
A110: 2920000 | B110: =A110-'via Einkommen'!$C$8 -> 2720000 | C110: 0.9315068493 | D110: 122400 | E110: 52853.33333 | F110: 20440 | G110: 195693.3333 | H110: =+'via Einkommen'!$C$7*'via Einkommen'!$P$6 -> 52500 | I110: NOK | J110: =A110-'via Einkommen'!$C$8-K110 -> 2720000 | K110: =A110/100*'via Einkommen'!$C$9 -> 0 | L110: 122400 | M110: 0 | N110: 195693.3333 | O110: NOK
A111: 2910000 | B111: =A111-'via Einkommen'!$C$8 -> 2710000 | C111: 0.9312714777 | D111: 121950 | E111: 52626.66667 | F111: 20370 | G111: 194946.6667 | H111: =+'via Einkommen'!$C$7*'via Einkommen'!$P$6 -> 52500 | I111: NOK | J111: =A111-'via Einkommen'!$C$8-K111 -> 2710000 | K111: =A111/100*'via Einkommen'!$C$9 -> 0 | L111: 121950 | M111: 0 | N111: 194946.6667 | O111: NOK
A112: 2900000 | B112: =A112-'via Einkommen'!$C$8 -> 2700000 | C112: 0.9310344828 | D112: 121500 | E112: 52400 | F112: 20300 | G112: 194200 | H112: =+'via Einkommen'!$C$7*'via Einkommen'!$P$6 -> 52500 | I112: NOK | J112: =A112-'via Einkommen'!$C$8-K112 -> 2700000 | K112: =A112/100*'via Einkommen'!$C$9 -> 0 | L112: 121500 | M112: 0 | N112: 194200 | O112: NOK
A113: 2890000 | B113: =A113-'via Einkommen'!$C$8 -> 2690000 | C113: 0.9307958478 | D113: 121050 | E113: 52173.33333 | F113: 20230 | G113: 193453.3333 | H113: =+'via Einkommen'!$C$7*'via Einkommen'!$P$6 -> 52500 | I113: NOK | J113: =A113-'via Einkommen'!$C$8-K113 -> 2690000 | K113: =A113/100*'via Einkommen'!$C$9 -> 0 | L113: 121050 | M113: 0 | N113: 193453.3333 | O113: NOK
A114: 2880000 | B114: =A114-'via Einkommen'!$C$8 -> 2680000 | C114: 0.9305555556 | D114: 120600 | E114: 51946.66667 | F114: 20160 | G114: 192706.6667 | H114: =+'via Einkommen'!$C$7*'via Einkommen'!$P$6 -> 52500 | I114: NOK | J114: =A114-'via Einkommen'!$C$8-K114 -> 2680000 | K114: =A114/100*'via Einkommen'!$C$9 -> 0 | L114: 120600 | M114: 0 | N114: 192706.6667 | O114: NOK
A115: 2870000 | B115: =A115-'via Einkommen'!$C$8 -> 2670000 | C115: 0.9303135889 | D115: 120150 | E115: 51720 | F115: 20090 | G115: 191960 | H115: =+'via Einkommen'!$C$7*'via Einkommen'!$P$6 -> 52500 | I115: NOK | J115: =A115-'via Einkommen'!$C$8-K115 -> 2670000 | K115: =A115/100*'via Einkommen'!$C$9 -> 0 | L115: 120150 | M115: 0 | N115: 191960 | O115: NOK
A116: 2860000 | B116: =A116-'via Einkommen'!$C$8 -> 2660000 | C116: 0.9300699301 | D116: 119700 | E116: 51493.33333 | F116: 20020 | G116: 191213.3333 | H116: =+'via Einkommen'!$C$7*'via Einkommen'!$P$6 -> 52500 | I116: NOK | J116: =A116-'via Einkommen'!$C$8-K116 -> 2660000 | K116: =A116/100*'via Einkommen'!$C$9 -> 0 | L116: 119700 | M116: 0 | N116: 191213.3333 | O116: NOK
A117: 2850000 | B117: =A117-'via Einkommen'!$C$8 -> 2650000 | C117: 0.9298245614 | D117: 119250 | E117: 51266.66667 | F117: 19950 | G117: 190466.6667 | H117: =+'via Einkommen'!$C$7*'via Einkommen'!$P$6 -> 52500 | I117: NOK | J117: =A117-'via Einkommen'!$C$8-K117 -> 2650000 | K117: =A117/100*'via Einkommen'!$C$9 -> 0 | L117: 119250 | M117: 0 | N117: 190466.6667 | O117: NOK
A118: 2840000 | B118: =A118-'via Einkommen'!$C$8 -> 2640000 | C118: 0.9295774648 | D118: 118800 | E118: 51040 | F118: 19880 | G118: 189720 | H118: =+'via Einkommen'!$C$7*'via Einkommen'!$P$6 -> 52500 | I118: NOK | J118: =A118-'via Einkommen'!$C$8-K118 -> 2640000 | K118: =A118/100*'via Einkommen'!$C$9 -> 0 | L118: 118800 | M118: 0 | N118: 189720 | O118: NOK
A119: 2830000 | B119: =A119-'via Einkommen'!$C$8 -> 2630000 | C119: 0.9293286219 | D119: 118350 | E119: 50813.33333 | F119: 19810 | G119: 188973.3333 | H119: =+'via Einkommen'!$C$7*'via Einkommen'!$P$6 -> 52500 | I119: NOK | J119: =A119-'via Einkommen'!$C$8-K119 -> 2630000 | K119: =A119/100*'via Einkommen'!$C$9 -> 0 | L119: 118350 | M119: 0 | N119: 188973.3333 | O119: NOK
A120: 2820000 | B120: =A120-'via Einkommen'!$C$8 -> 2620000 | C120: 0.9290780142 | D120: 117900 | E120: 50586.66667 | F120: 19740 | G120: 188226.6667 | H120: =+'via Einkommen'!$C$7*'via Einkommen'!$P$6 -> 52500 | I120: NOK | J120: =A120-'via Einkommen'!$C$8-K120 -> 2620000 | K120: =A120/100*'via Einkommen'!$C$9 -> 0 | L120: 117900 | M120: 0 | N120: 188226.6667 | O120: NOK
A121: 2810000 | B121: =A121-'via Einkommen'!$C$8 -> 2610000 | C121: 0.9288256228 | D121: 117450 | E121: 50360 | F121: 19670 | G121: 187480 | H121: =+'via Einkommen'!$C$7*'via Einkommen'!$P$6 -> 52500 | I121: NOK | J121: =A121-'via Einkommen'!$C$8-K121 -> 2610000 | K121: =A121/100*'via Einkommen'!$C$9 -> 0 | L121: 117450 | M121: 0 | N121: 187480 | O121: NOK
A122: 2800000 | B122: =A122-'via Einkommen'!$C$8 -> 2600000 | C122: 0.9285714286 | D122: 117000 | E122: 50133.33333 | F122: 19600 | G122: 186733.3333 | H122: =+'via Einkommen'!$C$7*'via Einkommen'!$P$6 -> 52500 | I122: NOK | J122: =A122-'via Einkommen'!$C$8-K122 -> 2600000 | K122: =A122/100*'via Einkommen'!$C$9 -> 0 | L122: 117000 | M122: 0 | N122: 186733.3333 | O122: NOK
A123: 2790000 | B123: =A123-'via Einkommen'!$C$8 -> 2590000 | C123: 0.9283154122 | D123: 116550 | E123: 49906.66667 | F123: 19530 | G123: 185986.6667 | H123: =+'via Einkommen'!$C$7*'via Einkommen'!$P$6 -> 52500 | I123: NOK | J123: =A123-'via Einkommen'!$C$8-K123 -> 2590000 | K123: =A123/100*'via Einkommen'!$C$9 -> 0 | L123: 116550 | M123: 0 | N123: 185986.6667 | O123: NOK
A124: 2780000 | B124: =A124-'via Einkommen'!$C$8 -> 2580000 | C124: 0.928057554 | D124: 116100 | E124: 49680 | F124: 19460 | G124: 185240 | H124: =+'via Einkommen'!$C$7*'via Einkommen'!$P$6 -> 52500 | I124: NOK | J124: =A124-'via Einkommen'!$C$8-K124 -> 2580000 | K124: =A124/100*'via Einkommen'!$C$9 -> 0 | L124: 116100 | M124: 0 | N124: 185240 | O124: NOK
A125: 2770000 | B125: =A125-'via Einkommen'!$C$8 -> 2570000 | C125: 0.9277978339 | D125: 115650 | E125: 49453.33333 | F125: 19390 | G125: 184493.3333 | H125: =+'via Einkommen'!$C$7*'via Einkommen'!$P$6 -> 52500 | I125: NOK | J125: =A125-'via Einkommen'!$C$8-K125 -> 2570000 | K125: =A125/100*'via Einkommen'!$C$9 -> 0 | L125: 115650 | M125: 0 | N125: 184493.3333 | O125: NOK
A126: 2760000 | B126: =A126-'via Einkommen'!$C$8 -> 2560000 | C126: 0.9275362319 | D126: 115200 | E126: 49226.66667 | F126: 19320 | G126: 183746.6667 | H126: =+'via Einkommen'!$C$7*'via Einkommen'!$P$6 -> 52500 | I126: NOK | J126: =A126-'via Einkommen'!$C$8-K126 -> 2560000 | K126: =A126/100*'via Einkommen'!$C$9 -> 0 | L126: 115200 | M126: 0 | N126: 183746.6667 | O126: NOK
A127: 2750000 | B127: =A127-'via Einkommen'!$C$8 -> 2550000 | C127: 0.9272727273 | D127: 114750 | E127: 49000 | F127: 19250 | G127: 183000 | H127: =+'via Einkommen'!$C$7*'via Einkommen'!$P$6 -> 52500 | I127: NOK | J127: =A127-'via Einkommen'!$C$8-K127 -> 2550000 | K127: =A127/100*'via Einkommen'!$C$9 -> 0 | L127: 114750 | M127: 0 | N127: 183000 | O127: NOK
A128: 2740000 | B128: =A128-'via Einkommen'!$C$8 -> 2540000 | C128: 0.9270072993 | D128: 114300 | E128: 48773.33333 | F128: 19180 | G128: 182253.3333 | H128: =+'via Einkommen'!$C$7*'via Einkommen'!$P$6 -> 52500 | I128: NOK | J128: =A128-'via Einkommen'!$C$8-K128 -> 2540000 | K128: =A128/100*'via Einkommen'!$C$9 -> 0 | L128: 114300 | M128: 0 | N128: 182253.3333 | O128: NOK
A129: 2730000 | B129: =A129-'via Einkommen'!$C$8 -> 2530000 | C129: 0.9267399267 | D129: 113850 | E129: 48546.66667 | F129: 19110 | G129: 181506.6667 | H129: =+'via Einkommen'!$C$7*'via Einkommen'!$P$6 -> 52500 | I129: NOK | J129: =A129-'via Einkommen'!$C$8-K129 -> 2530000 | K129: =A129/100*'via Einkommen'!$C$9 -> 0 | L129: 113850 | M129: 0 | N129: 181506.6667 | O129: NOK
A130: 2720000 | B130: =A130-'via Einkommen'!$C$8 -> 2520000 | C130: 0.9264705882 | D130: 113400 | E130: 48320 | F130: 19040 | G130: 180760 | H130: =+'via Einkommen'!$C$7*'via Einkommen'!$P$6 -> 52500 | I130: NOK | J130: =A130-'via Einkommen'!$C$8-K130 -> 2520000 | K130: =A130/100*'via Einkommen'!$C$9 -> 0 | L130: 113400 | M130: 0 | N130: 180760 | O130: NOK
A131: 2710000 | B131: =A131-'via Einkommen'!$C$8 -> 2510000 | C131: 0.926199262 | D131: 112950 | E131: 48093.33333 | F131: 18970 | G131: 180013.3333 | H131: =+'via Einkommen'!$C$7*'via Einkommen'!$P$6 -> 52500 | I131: NOK | J131: =A131-'via Einkommen'!$C$8-K131 -> 2510000 | K131: =A131/100*'via Einkommen'!$C$9 -> 0 | L131: =0.045*J131 -> 112950 | M131: =0.0175*K131 -> 0 | N131: =L131+M131+E131+F131 -> 180013.3333 | O131: =IF(H131>N131,"OK","NOK") -> NOK
A132: =A131-10000 -> 2700000 | B132: =A132-'via Einkommen'!$C$8 -> 2500000 | C132: =B132/A132 -> 0.9259259259 | D132: =0.045*B132 -> 112500 | E132: =IF(C132<0.66,"0",(B132-(A132*0.66))/15) -> 47866.66667 | F132: =0.007*A132 -> 18900 | G132: =SUM(D132:F132) -> 179266.6667 | H132: =+'via Einkommen'!$C$7*'via Einkommen'!$P$6 -> 52500 | I132: =IF(H132>G132,"OK","NOK") -> NOK | J132: =A132-'via Einkommen'!$C$8-K132 -> 2500000 | K132: =A132/100*'via Einkommen'!$C$9 -> 0 | L132: 112500 | M132: 0 | N132: 179266.6667 | O132: NOK
A133: 2690000 | B133: =A133-'via Einkommen'!$C$8 -> 2490000 | C133: 0.9256505576 | D133: 112050 | E133: 47640 | F133: 18830 | G133: 178520 | H133: =+'via Einkommen'!$C$7*'via Einkommen'!$P$6 -> 52500 | I133: NOK | J133: =A133-'via Einkommen'!$C$8-K133 -> 2490000 | K133: =A133/100*'via Einkommen'!$C$9 -> 0 | L133: 112050 | M133: 0 | N133: 178520 | O133: NOK
A134: 2680000 | B134: =A134-'via Einkommen'!$C$8 -> 2480000 | C134: 0.9253731343 | D134: 111600 | E134: 47413.33333 | F134: 18760 | G134: 177773.3333 | H134: =+'via Einkommen'!$C$7*'via Einkommen'!$P$6 -> 52500 | I134: NOK | J134: =A134-'via Einkommen'!$C$8-K134 -> 2480000 | K134: =A134/100*'via Einkommen'!$C$9 -> 0 | L134: 111600 | M134: 0 | N134: 177773.3333 | O134: NOK
A135: 2670000 | B135: =A135-'via Einkommen'!$C$8 -> 2470000 | C135: 0.925093633 | D135: 111150 | E135: 47186.66667 | F135: 18690 | G135: 177026.6667 | H135: =+'via Einkommen'!$C$7*'via Einkommen'!$P$6 -> 52500 | I135: NOK | J135: =A135-'via Einkommen'!$C$8-K135 -> 2470000 | K135: =A135/100*'via Einkommen'!$C$9 -> 0 | L135: 111150 | M135: 0 | N135: 177026.6667 | O135: NOK
A136: 2660000 | B136: =A136-'via Einkommen'!$C$8 -> 2460000 | C136: 0.9248120301 | D136: 110700 | E136: 46960 | F136: 18620 | G136: 176280 | H136: =+'via Einkommen'!$C$7*'via Einkommen'!$P$6 -> 52500 | I136: NOK | J136: =A136-'via Einkommen'!$C$8-K136 -> 2460000 | K136: =A136/100*'via Einkommen'!$C$9 -> 0 | L136: 110700 | M136: 0 | N136: 176280 | O136: NOK
A137: 2650000 | B137: =A137-'via Einkommen'!$C$8 -> 2450000 | C137: 0.9245283019 | D137: 110250 | E137: 46733.33333 | F137: 18550 | G137: 175533.3333 | H137: =+'via Einkommen'!$C$7*'via Einkommen'!$P$6 -> 52500 | I137: NOK | J137: =A137-'via Einkommen'!$C$8-K137 -> 2450000 | K137: =A137/100*'via Einkommen'!$C$9 -> 0 | L137: 110250 | M137: 0 | N137: 175533.3333 | O137: NOK
A138: 2640000 | B138: =A138-'via Einkommen'!$C$8 -> 2440000 | C138: 0.9242424242 | D138: 109800 | E138: 46506.66667 | F138: 18480 | G138: 174786.6667 | H138: =+'via Einkommen'!$C$7*'via Einkommen'!$P$6 -> 52500 | I138: NOK | J138: =A138-'via Einkommen'!$C$8-K138 -> 2440000 | K138: =A138/100*'via Einkommen'!$C$9 -> 0 | L138: 109800 | M138: 0 | N138: 174786.6667 | O138: NOK
A139: 2630000 | B139: =A139-'via Einkommen'!$C$8 -> 2430000 | C139: 0.9239543726 | D139: 109350 | E139: 46280 | F139: 18410 | G139: 174040 | H139: =+'via Einkommen'!$C$7*'via Einkommen'!$P$6 -> 52500 | I139: NOK | J139: =A139-'via Einkommen'!$C$8-K139 -> 2430000 | K139: =A139/100*'via Einkommen'!$C$9 -> 0 | L139: 109350 | M139: 0 | N139: 174040 | O139: NOK
A140: 2620000 | B140: =A140-'via Einkommen'!$C$8 -> 2420000 | C140: 0.9236641221 | D140: 108900 | E140: 46053.33333 | F140: 18340 | G140: 173293.3333 | H140: =+'via Einkommen'!$C$7*'via Einkommen'!$P$6 -> 52500 | I140: NOK | J140: =A140-'via Einkommen'!$C$8-K140 -> 2420000 | K140: =A140/100*'via Einkommen'!$C$9 -> 0 | L140: 108900 | M140: 0 | N140: 173293.3333 | O140: NOK
A141: 2610000 | B141: =A141-'via Einkommen'!$C$8 -> 2410000 | C141: 0.9233716475 | D141: 108450 | E141: 45826.66667 | F141: 18270 | G141: 172546.6667 | H141: =+'via Einkommen'!$C$7*'via Einkommen'!$P$6 -> 52500 | I141: NOK | J141: =A141-'via Einkommen'!$C$8-K141 -> 2410000 | K141: =A141/100*'via Einkommen'!$C$9 -> 0 | L141: 108450 | M141: 0 | N141: 172546.6667 | O141: NOK
A142: =A141-10000 -> 2600000 | B142: =A142-'via Einkommen'!$C$8 -> 2400000 | C142: =B142/A142 -> 0.9230769231 | D142: =0.045*B142 -> 108000 | E142: =IF(C142<0.66,"0",(B142-(A142*0.66))/15) -> 45600 | F142: =0.007*A142 -> 18200 | G142: =SUM(D142:F142) -> 171800 | H142: =+'via Einkommen'!$C$7*'via Einkommen'!$P$6 -> 52500 | I142: =IF(H142>G142,"OK","NOK") -> NOK | J142: =A142-'via Einkommen'!$C$8-K142 -> 2400000 | K142: =A142/100*'via Einkommen'!$C$9 -> 0 | L142: 108000 | M142: 0 | N142: 171800 | O142: NOK
A143: 2590000 | B143: =A143-'via Einkommen'!$C$8 -> 2390000 | C143: 0.9227799228 | D143: 107550 | E143: 45373.33333 | F143: 18130 | G143: 171053.3333 | H143: =+'via Einkommen'!$C$7*'via Einkommen'!$P$6 -> 52500 | I143: NOK | J143: =A143-'via Einkommen'!$C$8-K143 -> 2390000 | K143: =A143/100*'via Einkommen'!$C$9 -> 0 | L143: 107550 | M143: 0 | N143: 171053.3333 | O143: NOK
A144: 2580000 | B144: =A144-'via Einkommen'!$C$8 -> 2380000 | C144: 0.9224806202 | D144: 107100 | E144: 45146.66667 | F144: 18060 | G144: 170306.6667 | H144: =+'via Einkommen'!$C$7*'via Einkommen'!$P$6 -> 52500 | I144: NOK | J144: =A144-'via Einkommen'!$C$8-K144 -> 2380000 | K144: =A144/100*'via Einkommen'!$C$9 -> 0 | L144: 107100 | M144: 0 | N144: 170306.6667 | O144: NOK
A145: 2570000 | B145: =A145-'via Einkommen'!$C$8 -> 2370000 | C145: 0.9221789883 | D145: 106650 | E145: 44920 | F145: 17990 | G145: 169560 | H145: =+'via Einkommen'!$C$7*'via Einkommen'!$P$6 -> 52500 | I145: NOK | J145: =A145-'via Einkommen'!$C$8-K145 -> 2370000 | K145: =A145/100*'via Einkommen'!$C$9 -> 0 | L145: 106650 | M145: 0 | N145: 169560 | O145: NOK
A146: 2560000 | B146: =A146-'via Einkommen'!$C$8 -> 2360000 | C146: 0.921875 | D146: 106200 | E146: 44693.33333 | F146: 17920 | G146: 168813.3333 | H146: =+'via Einkommen'!$C$7*'via Einkommen'!$P$6 -> 52500 | I146: NOK | J146: =A146-'via Einkommen'!$C$8-K146 -> 2360000 | K146: =A146/100*'via Einkommen'!$C$9 -> 0 | L146: 106200 | M146: 0 | N146: 168813.3333 | O146: NOK
A147: 2550000 | B147: =A147-'via Einkommen'!$C$8 -> 2350000 | C147: 0.9215686275 | D147: 105750 | E147: 44466.66667 | F147: 17850 | G147: 168066.6667 | H147: =+'via Einkommen'!$C$7*'via Einkommen'!$P$6 -> 52500 | I147: NOK | J147: =A147-'via Einkommen'!$C$8-K147 -> 2350000 | K147: =A147/100*'via Einkommen'!$C$9 -> 0 | L147: 105750 | M147: 0 | N147: 168066.6667 | O147: NOK
A148: 2540000 | B148: =A148-'via Einkommen'!$C$8 -> 2340000 | C148: 0.9212598425 | D148: 105300 | E148: 44240 | F148: 17780 | G148: 167320 | H148: =+'via Einkommen'!$C$7*'via Einkommen'!$P$6 -> 52500 | I148: NOK | J148: =A148-'via Einkommen'!$C$8-K148 -> 2340000 | K148: =A148/100*'via Einkommen'!$C$9 -> 0 | L148: 105300 | M148: 0 | N148: 167320 | O148: NOK
A149: 2530000 | B149: =A149-'via Einkommen'!$C$8 -> 2330000 | C149: 0.9209486166 | D149: 104850 | E149: 44013.33333 | F149: 17710 | G149: 166573.3333 | H149: =+'via Einkommen'!$C$7*'via Einkommen'!$P$6 -> 52500 | I149: NOK | J149: =A149-'via Einkommen'!$C$8-K149 -> 2330000 | K149: =A149/100*'via Einkommen'!$C$9 -> 0 | L149: 104850 | M149: 0 | N149: 166573.3333 | O149: NOK
A150: 2520000 | B150: =A150-'via Einkommen'!$C$8 -> 2320000 | C150: 0.9206349206 | D150: 104400 | E150: 43786.66667 | F150: 17640 | G150: 165826.6667 | H150: =+'via Einkommen'!$C$7*'via Einkommen'!$P$6 -> 52500 | I150: NOK | J150: =A150-'via Einkommen'!$C$8-K150 -> 2320000 | K150: =A150/100*'via Einkommen'!$C$9 -> 0 | L150: 104400 | M150: 0 | N150: 165826.6667 | O150: NOK
A151: 2510000 | B151: =A151-'via Einkommen'!$C$8 -> 2310000 | C151: 0.9203187251 | D151: 103950 | E151: 43560 | F151: 17570 | G151: 165080 | H151: =+'via Einkommen'!$C$7*'via Einkommen'!$P$6 -> 52500 | I151: NOK | J151: =A151-'via Einkommen'!$C$8-K151 -> 2310000 | K151: =A151/100*'via Einkommen'!$C$9 -> 0 | L151: 103950 | M151: 0 | N151: 165080 | O151: NOK
A152: 2500000 | B152: =A152-'via Einkommen'!$C$8 -> 2300000 | C152: 0.92 | D152: 103500 | E152: 43333.33333 | F152: 17500 | G152: 164333.3333 | H152: =+'via Einkommen'!$C$7*'via Einkommen'!$P$6 -> 52500 | I152: NOK | J152: =A152-'via Einkommen'!$C$8-K152 -> 2300000 | K152: =A152/100*'via Einkommen'!$C$9 -> 0 | L152: 103500 | M152: 0 | N152: 164333.3333 | O152: NOK
A153: 2490000 | B153: =A153-'via Einkommen'!$C$8 -> 2290000 | C153: 0.9196787149 | D153: 103050 | E153: 43106.66667 | F153: 17430 | G153: 163586.6667 | H153: =+'via Einkommen'!$C$7*'via Einkommen'!$P$6 -> 52500 | I153: NOK | J153: =A153-'via Einkommen'!$C$8-K153 -> 2290000 | K153: =A153/100*'via Einkommen'!$C$9 -> 0 | L153: 103050 | M153: 0 | N153: 163586.6667 | O153: NOK
A154: 2480000 | B154: =A154-'via Einkommen'!$C$8 -> 2280000 | C154: 0.9193548387 | D154: 102600 | E154: 42880 | F154: 17360 | G154: 162840 | H154: =+'via Einkommen'!$C$7*'via Einkommen'!$P$6 -> 52500 | I154: NOK | J154: =A154-'via Einkommen'!$C$8-K154 -> 2280000 | K154: =A154/100*'via Einkommen'!$C$9 -> 0 | L154: 102600 | M154: 0 | N154: 162840 | O154: NOK
A155: 2470000 | B155: =A155-'via Einkommen'!$C$8 -> 2270000 | C155: 0.9190283401 | D155: 102150 | E155: 42653.33333 | F155: 17290 | G155: 162093.3333 | H155: =+'via Einkommen'!$C$7*'via Einkommen'!$P$6 -> 52500 | I155: NOK | J155: =A155-'via Einkommen'!$C$8-K155 -> 2270000 | K155: =A155/100*'via Einkommen'!$C$9 -> 0 | L155: 102150 | M155: 0 | N155: 162093.3333 | O155: NOK
A156: 2460000 | B156: =A156-'via Einkommen'!$C$8 -> 2260000 | C156: 0.918699187 | D156: 101700 | E156: 42426.66667 | F156: 17220 | G156: 161346.6667 | H156: =+'via Einkommen'!$C$7*'via Einkommen'!$P$6 -> 52500 | I156: NOK | J156: =A156-'via Einkommen'!$C$8-K156 -> 2260000 | K156: =A156/100*'via Einkommen'!$C$9 -> 0 | L156: 101700 | M156: 0 | N156: 161346.6667 | O156: NOK
A157: 2450000 | B157: =A157-'via Einkommen'!$C$8 -> 2250000 | C157: 0.9183673469 | D157: 101250 | E157: 42200 | F157: 17150 | G157: 160600 | H157: =+'via Einkommen'!$C$7*'via Einkommen'!$P$6 -> 52500 | I157: NOK | J157: =A157-'via Einkommen'!$C$8-K157 -> 2250000 | K157: =A157/100*'via Einkommen'!$C$9 -> 0 | L157: 101250 | M157: 0 | N157: 160600 | O157: NOK
A158: 2440000 | B158: =A158-'via Einkommen'!$C$8 -> 2240000 | C158: 0.9180327869 | D158: 100800 | E158: 41973.33333 | F158: 17080 | G158: 159853.3333 | H158: =+'via Einkommen'!$C$7*'via Einkommen'!$P$6 -> 52500 | I158: NOK | J158: =A158-'via Einkommen'!$C$8-K158 -> 2240000 | K158: =A158/100*'via Einkommen'!$C$9 -> 0 | L158: 100800 | M158: 0 | N158: 159853.3333 | O158: NOK
A159: 2430000 | B159: =A159-'via Einkommen'!$C$8 -> 2230000 | C159: 0.9176954733 | D159: 100350 | E159: 41746.66667 | F159: 17010 | G159: 159106.6667 | H159: =+'via Einkommen'!$C$7*'via Einkommen'!$P$6 -> 52500 | I159: NOK | J159: =A159-'via Einkommen'!$C$8-K159 -> 2230000 | K159: =A159/100*'via Einkommen'!$C$9 -> 0 | L159: 100350 | M159: 0 | N159: 159106.6667 | O159: NOK
A160: 2420000 | B160: =A160-'via Einkommen'!$C$8 -> 2220000 | C160: 0.9173553719 | D160: 99900 | E160: 41520 | F160: 16940 | G160: 158360 | H160: =+'via Einkommen'!$C$7*'via Einkommen'!$P$6 -> 52500 | I160: NOK | J160: =A160-'via Einkommen'!$C$8-K160 -> 2220000 | K160: =A160/100*'via Einkommen'!$C$9 -> 0 | L160: 99900 | M160: 0 | N160: 158360 | O160: NOK
A161: 2410000 | B161: =A161-'via Einkommen'!$C$8 -> 2210000 | C161: 0.9170124481 | D161: 99450 | E161: 41293.33333 | F161: 16870 | G161: 157613.3333 | H161: =+'via Einkommen'!$C$7*'via Einkommen'!$P$6 -> 52500 | I161: NOK | J161: =A161-'via Einkommen'!$C$8-K161 -> 2210000 | K161: =A161/100*'via Einkommen'!$C$9 -> 0 | L161: 99450 | M161: 0 | N161: 157613.3333 | O161: NOK
A162: 2400000 | B162: =A162-'via Einkommen'!$C$8 -> 2200000 | C162: 0.9166666667 | D162: 99000 | E162: 41066.66667 | F162: 16800 | G162: 156866.6667 | H162: =+'via Einkommen'!$C$7*'via Einkommen'!$P$6 -> 52500 | I162: NOK | J162: =A162-'via Einkommen'!$C$8-K162 -> 2200000 | K162: =A162/100*'via Einkommen'!$C$9 -> 0 | L162: 99000 | M162: 0 | N162: 156866.6667 | O162: NOK
A163: 2390000 | B163: =A163-'via Einkommen'!$C$8 -> 2190000 | C163: 0.9163179916 | D163: 98550 | E163: 40840 | F163: 16730 | G163: 156120 | H163: =+'via Einkommen'!$C$7*'via Einkommen'!$P$6 -> 52500 | I163: NOK | J163: =A163-'via Einkommen'!$C$8-K163 -> 2190000 | K163: =A163/100*'via Einkommen'!$C$9 -> 0 | L163: 98550 | M163: 0 | N163: 156120 | O163: NOK
A164: 2380000 | B164: =A164-'via Einkommen'!$C$8 -> 2180000 | C164: 0.9159663866 | D164: 98100 | E164: 40613.33333 | F164: 16660 | G164: 155373.3333 | H164: =+'via Einkommen'!$C$7*'via Einkommen'!$P$6 -> 52500 | I164: NOK | J164: =A164-'via Einkommen'!$C$8-K164 -> 2180000 | K164: =A164/100*'via Einkommen'!$C$9 -> 0 | L164: 98100 | M164: 0 | N164: 155373.3333 | O164: NOK
A165: 2370000 | B165: =A165-'via Einkommen'!$C$8 -> 2170000 | C165: 0.9156118143 | D165: 97650 | E165: 40386.66667 | F165: 16590 | G165: 154626.6667 | H165: =+'via Einkommen'!$C$7*'via Einkommen'!$P$6 -> 52500 | I165: NOK | J165: =A165-'via Einkommen'!$C$8-K165 -> 2170000 | K165: =A165/100*'via Einkommen'!$C$9 -> 0 | L165: 97650 | M165: 0 | N165: 154626.6667 | O165: NOK
A166: 2360000 | B166: =A166-'via Einkommen'!$C$8 -> 2160000 | C166: 0.9152542373 | D166: 97200 | E166: 40160 | F166: 16520 | G166: 153880 | H166: =+'via Einkommen'!$C$7*'via Einkommen'!$P$6 -> 52500 | I166: NOK | J166: =A166-'via Einkommen'!$C$8-K166 -> 2160000 | K166: =A166/100*'via Einkommen'!$C$9 -> 0 | L166: 97200 | M166: 0 | N166: 153880 | O166: NOK
A167: 2350000 | B167: =A167-'via Einkommen'!$C$8 -> 2150000 | C167: 0.914893617 | D167: 96750 | E167: 39933.33333 | F167: 16450 | G167: 153133.3333 | H167: =+'via Einkommen'!$C$7*'via Einkommen'!$P$6 -> 52500 | I167: NOK | J167: =A167-'via Einkommen'!$C$8-K167 -> 2150000 | K167: =A167/100*'via Einkommen'!$C$9 -> 0 | L167: 96750 | M167: 0 | N167: 153133.3333 | O167: NOK
A168: 2340000 | B168: =A168-'via Einkommen'!$C$8 -> 2140000 | C168: 0.9145299145 | D168: 96300 | E168: 39706.66667 | F168: 16380 | G168: 152386.6667 | H168: =+'via Einkommen'!$C$7*'via Einkommen'!$P$6 -> 52500 | I168: NOK | J168: =A168-'via Einkommen'!$C$8-K168 -> 2140000 | K168: =A168/100*'via Einkommen'!$C$9 -> 0 | L168: 96300 | M168: 0 | N168: 152386.6667 | O168: NOK
A169: 2330000 | B169: =A169-'via Einkommen'!$C$8 -> 2130000 | C169: 0.9141630901 | D169: 95850 | E169: 39480 | F169: 16310 | G169: 151640 | H169: =+'via Einkommen'!$C$7*'via Einkommen'!$P$6 -> 52500 | I169: NOK | J169: =A169-'via Einkommen'!$C$8-K169 -> 2130000 | K169: =A169/100*'via Einkommen'!$C$9 -> 0 | L169: 95850 | M169: 0 | N169: 151640 | O169: NOK
A170: 2320000 | B170: =A170-'via Einkommen'!$C$8 -> 2120000 | C170: 0.9137931034 | D170: 95400 | E170: 39253.33333 | F170: 16240 | G170: 150893.3333 | H170: =+'via Einkommen'!$C$7*'via Einkommen'!$P$6 -> 52500 | I170: NOK | J170: =A170-'via Einkommen'!$C$8-K170 -> 2120000 | K170: =A170/100*'via Einkommen'!$C$9 -> 0 | L170: 95400 | M170: 0 | N170: 150893.3333 | O170: NOK
A171: 2310000 | B171: =A171-'via Einkommen'!$C$8 -> 2110000 | C171: 0.9134199134 | D171: 94950 | E171: 39026.66667 | F171: 16170 | G171: 150146.6667 | H171: =+'via Einkommen'!$C$7*'via Einkommen'!$P$6 -> 52500 | I171: NOK | J171: =A171-'via Einkommen'!$C$8-K171 -> 2110000 | K171: =A171/100*'via Einkommen'!$C$9 -> 0 | L171: 94950 | M171: 0 | N171: 150146.6667 | O171: NOK
A172: 2300000 | B172: =A172-'via Einkommen'!$C$8 -> 2100000 | C172: 0.9130434783 | D172: 94500 | E172: 38800 | F172: 16100 | G172: 149400 | H172: =+'via Einkommen'!$C$7*'via Einkommen'!$P$6 -> 52500 | I172: NOK | J172: =A172-'via Einkommen'!$C$8-K172 -> 2100000 | K172: =A172/100*'via Einkommen'!$C$9 -> 0 | L172: 94500 | M172: 0 | N172: 149400 | O172: NOK
A173: 2290000 | B173: =A173-'via Einkommen'!$C$8 -> 2090000 | C173: 0.9126637555 | D173: 94050 | E173: 38573.33333 | F173: 16030 | G173: 148653.3333 | H173: =+'via Einkommen'!$C$7*'via Einkommen'!$P$6 -> 52500 | I173: NOK | J173: =A173-'via Einkommen'!$C$8-K173 -> 2090000 | K173: =A173/100*'via Einkommen'!$C$9 -> 0 | L173: 94050 | M173: 0 | N173: 148653.3333 | O173: NOK
A174: 2280000 | B174: =A174-'via Einkommen'!$C$8 -> 2080000 | C174: 0.9122807018 | D174: 93600 | E174: 38346.66667 | F174: 15960 | G174: 147906.6667 | H174: =+'via Einkommen'!$C$7*'via Einkommen'!$P$6 -> 52500 | I174: NOK | J174: =A174-'via Einkommen'!$C$8-K174 -> 2080000 | K174: =A174/100*'via Einkommen'!$C$9 -> 0 | L174: 93600 | M174: 0 | N174: 147906.6667 | O174: NOK
A175: 2270000 | B175: =A175-'via Einkommen'!$C$8 -> 2070000 | C175: 0.9118942731 | D175: 93150 | E175: 38120 | F175: 15890 | G175: 147160 | H175: =+'via Einkommen'!$C$7*'via Einkommen'!$P$6 -> 52500 | I175: NOK | J175: =A175-'via Einkommen'!$C$8-K175 -> 2070000 | K175: =A175/100*'via Einkommen'!$C$9 -> 0 | L175: 93150 | M175: 0 | N175: 147160 | O175: NOK
A176: 2260000 | B176: =A176-'via Einkommen'!$C$8 -> 2060000 | C176: 0.9115044248 | D176: 92700 | E176: 37893.33333 | F176: 15820 | G176: 146413.3333 | H176: =+'via Einkommen'!$C$7*'via Einkommen'!$P$6 -> 52500 | I176: NOK | J176: =A176-'via Einkommen'!$C$8-K176 -> 2060000 | K176: =A176/100*'via Einkommen'!$C$9 -> 0 | L176: 92700 | M176: 0 | N176: 146413.3333 | O176: NOK
A177: 2250000 | B177: =A177-'via Einkommen'!$C$8 -> 2050000 | C177: 0.9111111111 | D177: 92250 | E177: 37666.66667 | F177: 15750 | G177: 145666.6667 | H177: =+'via Einkommen'!$C$7*'via Einkommen'!$P$6 -> 52500 | I177: NOK | J177: =A177-'via Einkommen'!$C$8-K177 -> 2050000 | K177: =A177/100*'via Einkommen'!$C$9 -> 0 | L177: 92250 | M177: 0 | N177: 145666.6667 | O177: NOK
A178: 2240000 | B178: =A178-'via Einkommen'!$C$8 -> 2040000 | C178: 0.9107142857 | D178: 91800 | E178: 37440 | F178: 15680 | G178: 144920 | H178: =+'via Einkommen'!$C$7*'via Einkommen'!$P$6 -> 52500 | I178: NOK | J178: =A178-'via Einkommen'!$C$8-K178 -> 2040000 | K178: =A178/100*'via Einkommen'!$C$9 -> 0 | L178: 91800 | M178: 0 | N178: 144920 | O178: NOK
A179: 2230000 | B179: =A179-'via Einkommen'!$C$8 -> 2030000 | C179: 0.9103139013 | D179: 91350 | E179: 37213.33333 | F179: 15610 | G179: 144173.3333 | H179: =+'via Einkommen'!$C$7*'via Einkommen'!$P$6 -> 52500 | I179: NOK | J179: =A179-'via Einkommen'!$C$8-K179 -> 2030000 | K179: =A179/100*'via Einkommen'!$C$9 -> 0 | L179: 91350 | M179: 0 | N179: 144173.3333 | O179: NOK
A180: 2220000 | B180: =A180-'via Einkommen'!$C$8 -> 2020000 | C180: 0.9099099099 | D180: 90900 | E180: 36986.66667 | F180: 15540 | G180: 143426.6667 | H180: =+'via Einkommen'!$C$7*'via Einkommen'!$P$6 -> 52500 | I180: NOK | J180: =A180-'via Einkommen'!$C$8-K180 -> 2020000 | K180: =A180/100*'via Einkommen'!$C$9 -> 0 | L180: 90900 | M180: 0 | N180: 143426.6667 | O180: NOK
A181: 2210000 | B181: =A181-'via Einkommen'!$C$8 -> 2010000 | C181: 0.9095022624 | D181: 90450 | E181: 36760 | F181: 15470 | G181: 142680 | H181: =+'via Einkommen'!$C$7*'via Einkommen'!$P$6 -> 52500 | I181: NOK | J181: =A181-'via Einkommen'!$C$8-K181 -> 2010000 | K181: =A181/100*'via Einkommen'!$C$9 -> 0 | L181: 90450 | M181: 0 | N181: 142680 | O181: NOK
A182: 2200000 | B182: =A182-'via Einkommen'!$C$8 -> 2000000 | C182: 0.9090909091 | D182: 90000 | E182: 36533.33333 | F182: 15400 | G182: 141933.3333 | H182: =+'via Einkommen'!$C$7*'via Einkommen'!$P$6 -> 52500 | I182: NOK | J182: =A182-'via Einkommen'!$C$8-K182 -> 2000000 | K182: =A182/100*'via Einkommen'!$C$9 -> 0 | L182: 90000 | M182: 0 | N182: 141933.3333 | O182: NOK
A183: 2190000 | B183: =A183-'via Einkommen'!$C$8 -> 1990000 | C183: 0.9086757991 | D183: 89550 | E183: 36306.66667 | F183: 15330 | G183: 141186.6667 | H183: =+'via Einkommen'!$C$7*'via Einkommen'!$P$6 -> 52500 | I183: NOK | J183: =A183-'via Einkommen'!$C$8-K183 -> 1990000 | K183: =A183/100*'via Einkommen'!$C$9 -> 0 | L183: 89550 | M183: 0 | N183: 141186.6667 | O183: NOK
A184: 2180000 | B184: =A184-'via Einkommen'!$C$8 -> 1980000 | C184: 0.9082568807 | D184: 89100 | E184: 36080 | F184: 15260 | G184: 140440 | H184: =+'via Einkommen'!$C$7*'via Einkommen'!$P$6 -> 52500 | I184: NOK | J184: =A184-'via Einkommen'!$C$8-K184 -> 1980000 | K184: =A184/100*'via Einkommen'!$C$9 -> 0 | L184: 89100 | M184: 0 | N184: 140440 | O184: NOK
A185: 2170000 | B185: =A185-'via Einkommen'!$C$8 -> 1970000 | C185: 0.9078341014 | D185: 88650 | E185: 35853.33333 | F185: 15190 | G185: 139693.3333 | H185: =+'via Einkommen'!$C$7*'via Einkommen'!$P$6 -> 52500 | I185: NOK | J185: =A185-'via Einkommen'!$C$8-K185 -> 1970000 | K185: =A185/100*'via Einkommen'!$C$9 -> 0 | L185: 88650 | M185: 0 | N185: 139693.3333 | O185: NOK
A186: 2160000 | B186: =A186-'via Einkommen'!$C$8 -> 1960000 | C186: 0.9074074074 | D186: 88200 | E186: 35626.66667 | F186: 15120 | G186: 138946.6667 | H186: =+'via Einkommen'!$C$7*'via Einkommen'!$P$6 -> 52500 | I186: NOK | J186: =A186-'via Einkommen'!$C$8-K186 -> 1960000 | K186: =A186/100*'via Einkommen'!$C$9 -> 0 | L186: 88200 | M186: 0 | N186: 138946.6667 | O186: NOK
A187: 2150000 | B187: =A187-'via Einkommen'!$C$8 -> 1950000 | C187: 0.9069767442 | D187: 87750 | E187: 35400 | F187: 15050 | G187: 138200 | H187: =+'via Einkommen'!$C$7*'via Einkommen'!$P$6 -> 52500 | I187: NOK | J187: =A187-'via Einkommen'!$C$8-K187 -> 1950000 | K187: =A187/100*'via Einkommen'!$C$9 -> 0 | L187: 87750 | M187: 0 | N187: 138200 | O187: NOK
A188: 2140000 | B188: =A188-'via Einkommen'!$C$8 -> 1940000 | C188: 0.9065420561 | D188: 87300 | E188: 35173.33333 | F188: 14980 | G188: 137453.3333 | H188: =+'via Einkommen'!$C$7*'via Einkommen'!$P$6 -> 52500 | I188: NOK | J188: =A188-'via Einkommen'!$C$8-K188 -> 1940000 | K188: =A188/100*'via Einkommen'!$C$9 -> 0 | L188: 87300 | M188: 0 | N188: 137453.3333 | O188: NOK
A189: 2130000 | B189: =A189-'via Einkommen'!$C$8 -> 1930000 | C189: 0.9061032864 | D189: 86850 | E189: 34946.66667 | F189: 14910 | G189: 136706.6667 | H189: =+'via Einkommen'!$C$7*'via Einkommen'!$P$6 -> 52500 | I189: NOK | J189: =A189-'via Einkommen'!$C$8-K189 -> 1930000 | K189: =A189/100*'via Einkommen'!$C$9 -> 0 | L189: 86850 | M189: 0 | N189: 136706.6667 | O189: NOK
A190: 2120000 | B190: =A190-'via Einkommen'!$C$8 -> 1920000 | C190: 0.9056603774 | D190: 86400 | E190: 34720 | F190: 14840 | G190: 135960 | H190: =+'via Einkommen'!$C$7*'via Einkommen'!$P$6 -> 52500 | I190: NOK | J190: =A190-'via Einkommen'!$C$8-K190 -> 1920000 | K190: =A190/100*'via Einkommen'!$C$9 -> 0 | L190: 86400 | M190: 0 | N190: 135960 | O190: NOK
A191: 2110000 | B191: =A191-'via Einkommen'!$C$8 -> 1910000 | C191: 0.9052132701 | D191: 85950 | E191: 34493.33333 | F191: 14770 | G191: 135213.3333 | H191: =+'via Einkommen'!$C$7*'via Einkommen'!$P$6 -> 52500 | I191: NOK | J191: =A191-'via Einkommen'!$C$8-K191 -> 1910000 | K191: =A191/100*'via Einkommen'!$C$9 -> 0 | L191: 85950 | M191: 0 | N191: 135213.3333 | O191: NOK
A192: 2100000 | B192: =A192-'via Einkommen'!$C$8 -> 1900000 | C192: 0.9047619048 | D192: 85500 | E192: 34266.66667 | F192: 14700 | G192: 134466.6667 | H192: =+'via Einkommen'!$C$7*'via Einkommen'!$P$6 -> 52500 | I192: NOK | J192: =A192-'via Einkommen'!$C$8-K192 -> 1900000 | K192: =A192/100*'via Einkommen'!$C$9 -> 0 | L192: 85500 | M192: 0 | N192: 134466.6667 | O192: NOK
A193: 2090000 | B193: =A193-'via Einkommen'!$C$8 -> 1890000 | C193: 0.9043062201 | D193: 85050 | E193: 34040 | F193: 14630 | G193: 133720 | H193: =+'via Einkommen'!$C$7*'via Einkommen'!$P$6 -> 52500 | I193: NOK | J193: =A193-'via Einkommen'!$C$8-K193 -> 1890000 | K193: =A193/100*'via Einkommen'!$C$9 -> 0 | L193: 85050 | M193: 0 | N193: 133720 | O193: NOK
A194: 2080000 | B194: =A194-'via Einkommen'!$C$8 -> 1880000 | C194: 0.9038461538 | D194: 84600 | E194: 33813.33333 | F194: 14560 | G194: 132973.3333 | H194: =+'via Einkommen'!$C$7*'via Einkommen'!$P$6 -> 52500 | I194: NOK | J194: =A194-'via Einkommen'!$C$8-K194 -> 1880000 | K194: =A194/100*'via Einkommen'!$C$9 -> 0 | L194: 84600 | M194: 0 | N194: 132973.3333 | O194: NOK
A195: 2070000 | B195: =A195-'via Einkommen'!$C$8 -> 1870000 | C195: 0.9033816425 | D195: 84150 | E195: 33586.66667 | F195: 14490 | G195: 132226.6667 | H195: =+'via Einkommen'!$C$7*'via Einkommen'!$P$6 -> 52500 | I195: NOK | J195: =A195-'via Einkommen'!$C$8-K195 -> 1870000 | K195: =A195/100*'via Einkommen'!$C$9 -> 0 | L195: =0.045*J195 -> 84150 | M195: =0.0175*K195 -> 0 | N195: =L195+M195+E195+F195 -> 132226.6667 | O195: =IF(H195>N195,"OK","NOK") -> NOK
A196: 2060000 | B196: =A196-'via Einkommen'!$C$8 -> 1860000 | C196: 0.9029126214 | D196: 83700 | E196: 33360 | F196: 14420 | G196: 131480 | H196: =+'via Einkommen'!$C$7*'via Einkommen'!$P$6 -> 52500 | I196: NOK | J196: =A196-'via Einkommen'!$C$8-K196 -> 1860000 | K196: =A196/100*'via Einkommen'!$C$9 -> 0 | L196: 83700 | M196: 0 | N196: 131480 | O196: NOK
A197: 2050000 | B197: =A197-'via Einkommen'!$C$8 -> 1850000 | C197: 0.9024390244 | D197: 83250 | E197: 33133.33333 | F197: 14350 | G197: 130733.3333 | H197: =+'via Einkommen'!$C$7*'via Einkommen'!$P$6 -> 52500 | I197: NOK | J197: =A197-'via Einkommen'!$C$8-K197 -> 1850000 | K197: =A197/100*'via Einkommen'!$C$9 -> 0 | L197: 83250 | M197: 0 | N197: 130733.3333 | O197: NOK
A198: 2040000 | B198: =A198-'via Einkommen'!$C$8 -> 1840000 | C198: 0.9019607843 | D198: 82800 | E198: 32906.66667 | F198: 14280 | G198: 129986.6667 | H198: =+'via Einkommen'!$C$7*'via Einkommen'!$P$6 -> 52500 | I198: NOK | J198: =A198-'via Einkommen'!$C$8-K198 -> 1840000 | K198: =A198/100*'via Einkommen'!$C$9 -> 0 | L198: 82800 | M198: 0 | N198: 129986.6667 | O198: NOK
A199: 2030000 | B199: =A199-'via Einkommen'!$C$8 -> 1830000 | C199: 0.9014778325 | D199: 82350 | E199: 32680 | F199: 14210 | G199: 129240 | H199: =+'via Einkommen'!$C$7*'via Einkommen'!$P$6 -> 52500 | I199: NOK | J199: =A199-'via Einkommen'!$C$8-K199 -> 1830000 | K199: =A199/100*'via Einkommen'!$C$9 -> 0 | L199: 82350 | M199: 0 | N199: 129240 | O199: NOK
A200: 2020000 | B200: =A200-'via Einkommen'!$C$8 -> 1820000 | C200: 0.900990099 | D200: 81900 | E200: 32453.33333 | F200: 14140 | G200: 128493.3333 | H200: =+'via Einkommen'!$C$7*'via Einkommen'!$P$6 -> 52500 | I200: NOK | J200: =A200-'via Einkommen'!$C$8-K200 -> 1820000 | K200: =A200/100*'via Einkommen'!$C$9 -> 0 | L200: 81900 | M200: 0 | N200: 128493.3333 | O200: NOK
... 201 more rows
